Workbook

Sheet Overzicht
R2: Resultaten
S3: NPV | T3: ='6. IOK integrated'!B465 -> -25094390.45
S5: IRR | T5: ='6. IOK integrated'!B466 -> 
L8: 0
M9: Capaciteit | N9: =sc6_codigester_digestate_ton*L8 -> 0 | S9: Droge mest | T9: -20 | U9: €/ton
B10: Qty | C10: 16000 | D10: ton/year | M10: Investering | N10: =IF(sc6_separation_totalinput_ton=0,0,(ge_separator_I0_cte*(sc6_separation_totalinput_ton/m_sc6_separation_OH_h)^ge_separator_I0_power)*(sc6_separation_totalinput_ton/m_sc6_separation_OH_h))+51913*(((25824*(sc6_UFseparation_thinfraction_ton))+15.61*(sc6_UFseparation_thinfraction_ton-sc6_UFseparation_thickfraction_ton))*1.2*(1000/(m_sc6_UFRO_OH_h*(24*60*60))))^0.6298+e_sc6_investment_dryer_€_ton*sc6_dryer1_totalinput_ton+e_sc6_investment_dryer_€_ton*sc6_dryer2_totalinput_ton+e_sc6_investment_dryer_€_ton*sc6_dryer3_totalinput_ton -> 0 | S10: Ultrafiltratierest | T10: -20 | U10: €/ton
B11: Gate fee | C11: 25 | D11: €/ton | M11: Op. kost | N11: =SUM('6. IOK integrated'!E367:E368,'6. IOK integrated'!E370:E371,'6. IOK integrated'!E373:E378) -> 0 | S11: RO retentaat | T11: 3 | U11: €/ton
K12: =1-L8 -> 1
I14: =sc6_codigester_totalbiogas_m³ -> 1286400 | J14: m³/jaar | S14: Productie | T14: =sc6_upgrading_biomethane_m³ -> 0 | U14: Nm³/jaar
S15: Opbrengst | T15: 23.05 | U15: €/MWh
G16: Capaciteit | H16: =sc6_codigester_pigmanure_ton+sc6_codigester_cosubstrates_ton -> 24000 | I16: ton/jaar | S16: Vloeibaar CO2 | T16: 0.1 | U16: €/kg
B17: Qty | C17: 8000 | D17: ton/year | G17: Investering | H17: =IF(sc6_codigester_totalinput_ton=0,0,(ge_dranco_I0_cte*(sc6_codigester_totalinput_ton^ge_dranco_I0_power)*sc6_codigester_totalinput_ton)) -> 5405922.797 | M17: =N17/10 -> 0 | N17: 0
B18: Gate fee | C18: -5 | D18: €/ton | G18: Op. kost | H18: =SUM('6. IOK integrated'!E345:E347) -> 198574.7647 | N18: Capaciteit | O18: =sc6_upgrading_codigester_m³_yr+sc6_upgrading_dranco_m³_yr -> 0
N19: Investering | O19: =IF(sc6_upgrading_totalbiogasinput_m³_h=0,0,(ge_LPCooab_I0_cte*sc6_upgrading_totalbiogasinput_m³_h^ge_LPCooab_I0_power)*sc6_upgrading_totalbiogasinput_m³_h) -> 0
N20: Op. kost | O20: =SUM('6. IOK integrated'!E359:E363) -> 0
S21: Productie-overschot | T21: =sc6_gasengine_surpluselectricity_MWh -> 9433.913609 | U21: MWh
M22: =M17*-1+1 -> 1 | S22: Opbrengst | T22: 65 | U22: €/MWh
S23: Subsidies | T23: 110 | U23: €/ groene stroom certificaat
B24: Qty | C24: 37400 | D24: ton/year
B25: Gate fee | C25: 40 | D25: €/ton | I25: ='6. IOK integrated'!H11+'6. IOK integrated'!H19 -> 4700409.236 | J25: m³/jaar | S25: Productie-overschot | T25: =sc6_gasengine_surplusheat_MWh -> 9297.11828 | U25: MWh
N26: Capaciteit | O26: =sc6_gasengine_dranco_m³_yr+sc6_gasengine_codigester_m³_yr -> 5944294.36 | S26: Opbrengst | T26: 20 | U26: €/MWh
N27: Investering | O27: =IF(OR(sc6_gasengine_totalbiogas_m³=0,s_sc6_gasengine=0),0,(IF((sc6_gasengine_electricpower_MW*1000)>900,-386.1*LN(900)+3170.5,-386.1*LN(sc6_gasengine_electricpower_MW*1000)+3170.5)*1.2)*(sc6_gasengine_electricpower_MW*1000)*m_sc6_gasengine_number)+IF(AND(OR(sc6_CHPdranco_ratio>0,sc6_CHPcodigester_ratio>0),s_sc6_gasengine=1),IF((sc6_gasengine_electricity_MWe*1000)<1500,200000/1500*(sc6_gasengine_electricity_MWe*1000)*1.1,200000/1500*(sc6_gasengine_electricity_MWe*1000)),0) -> 2096551.504 | S27: Subsidies | T27: 31 | U27: €/WKK certificaat
N28: Op. kost | O28: =SUM('6. IOK integrated'!E349,'6. IOK integrated'!E351) -> 377308.1359
G29: Capaciteit | H29: =sc6_OMSW_drancoinput_ton_yr+sc6_vergecuttings_drancoinput_ton_yr -> 46750
G30: Investering | H30: =IF(sc6_dranco_totalinput_ton=0,0,(ge_dranco_I0_cte*(sc6_dranco_totalinput_ton^ge_dranco_I0_power)*sc6_dranco_totalinput_ton)) -> 6160637.177
B31: Qty | C31: =s_sc6_roadsidecuttings_input_ton_yr -> 9350 | D31: ton/year | G31: Op. kost | H31: =SUM('6. IOK integrated'!E341:E343) -> 248642.6948 | S31: Productie | T31: =sc6_compost_ton -> 37223.26911 | U31: ton
B32: Gate fee | C32: 0 | D32: €/ton | S32: Opbrengst | T32: 13 | U32: €/ton
S33: Subsidies | T33: 0 | U33: €/ton
G34: Productie | H34: =sc6_woodboiler_heatproduction_MWh -> 0 | I34: MWh/jaar | K34: Capaciteit | L34: =sc6_composting_totalinput_ton -> 91209.83151 | N34: ton/jaar
G35: Capaciteit | I35: Automatisch | K35: Investering | L35: =IF(sc6_composting=0,IF(sc6_composting_totalinput_ton=0,0,(ge_composting_I0_cte*sc6_composting_totalinput_ton^ge_composting_I0_power)*sc6_composting_totalinput_ton),0)+IF(sc6_composting=0,IF(sc6_composting_totalinput_ton=0,0,e_sc6_composting_airtreatment_I0),0) -> 17702857.11
G36: Investering | H36: =IF(sc6_woodboiler_heatproduction_MWh<=0,0,(ge_woodchipboiler_I0_cte*(sc6_woodboiler_heatproduction_MWh/m_woodboiler_OH_h*1000)^ge_woodchipboiler_I0_power)*(sc6_woodboiler_heatproduction_MWh/m_woodboiler_OH_h*1000)) -> 0 | K36: Op. kost | L36: =SUM('6. IOK integrated'!E353:E357) -> 2383616.926 | S36: Productie | T36: =(sc6_composting_woodchips_ton-sc6_woodboiler_input_greenwaste_ton) -> 2101 | U36: ton
B37: Qty | C37: 210 | D37: Automatisch | G37: Op. kost | H37: =SUM('6. IOK integrated'!E380:E382) -> 0 | S37: Opbrengst | T37: 13 | U37: €/ton
B38: Prijs | C38: 28.5 | D38: €/ton | S38: Subsidies | T38: 0 | U38: €/ton
R41: Algemeen
B42: Qty | C42: 19100 | D42: ton/year | S42: Nominale interest eigen kapitaal | U42: 0.127
B43: Prijs | C43: 0 | D43: €/ton | S43: Reële interest lening | U43: 0.05
S44: Verhouding kapitaal/lening | U44: 0.5
C47: Enkel Back-up
C53: De ter beschikking gestelde modellen zijn uitsluitend bedoeld voor het doorrekenen van fictieve business cases tijdens een op 9 oktober 2012, in het kader van het project ‘Energie Conversie Parken’, georganiseerde workshop. De modellen worden uitsluitend ter informatie ter beschikking gesteld en zijn niet bedoeld voor gebruik in reële casussen. Gevolgen van het gebruik van de modellen ten behoeve van welke doelstelling dan ook, komen volledig voor rekening van de gebruiker ervan. Universiteit Hasselt kan niet aansprakelijk worden gesteld voor gevolgen die voortvloeien uit het gebruik van deze modellen.
C64: Voor meer informatie:
C65: miet.vandael@uhasselt.be | H65: 0032(0)11268743
C66: steven.vanpassel@uhasselt.be | H66: 0032(0)11268746

Sheet Back-up (hidden)
L8: =Overzicht!L8 -> 0 | M8: Handmatig | N8: Automatisch | S8: Digestaatfracties | T8: Automatisch
B9: Mest | C9: Automatisch | M9: Capaciteit | N9: =sc6_codigester_digestate_ton*L8 -> 0 | S9: Droge mest | T9: -20 | U9: €/ton
B10: Qty | C10: 16000 | D10: ton/year | M10: Investering | N10: =IF(sc6_separation_totalinput_ton=0,0,(ge_separator_I0_cte*(sc6_separation_totalinput_ton/m_sc6_separation_OH_h)^ge_separator_I0_power)*(sc6_separation_totalinput_ton/m_sc6_separation_OH_h))+51913*(((25824*(sc6_UFseparation_thinfraction_ton))+15.61*(sc6_UFseparation_thinfraction_ton-sc6_UFseparation_thickfraction_ton))*1.2*(1000/(m_sc6_UFRO_OH_h*(24*60*60))))^0.6298+e_sc6_investment_dryer_€_ton*sc6_dryer1_totalinput_ton+e_sc6_investment_dryer_€_ton*sc6_dryer2_totalinput_ton+e_sc6_investment_dryer_€_ton*sc6_dryer3_totalinput_ton -> 0 | S10: Ultrafiltratierest | T10: -20 | U10: €/ton
B11: Gate fee | C11: 25 | D11: €/ton | K11: =1-L8 -> 1 | M11: Op. kost | N11: =SUM('6. IOK integrated'!E367:E368,'6. IOK integrated'!E370:E371,'6. IOK integrated'!E373:E378) -> 0 | S11: RO retentaat | T11: 3 | U11: €/ton
S13: Groen aardgas
S14: Productie | T14: Handmatig
G15: Droge vergister | H15: Automatisch | S15: Opbrengst | T15: 23.05
B16: Cosubstraat | C16: Automatisch | G16: Capaciteit | H16: =sc6_codigester_pigmanure_ton+sc6_codigester_cosubstrates_ton -> 24000 | S16: Vloeibaar CO2 | T16: 0.1 | U16: €/kg
B17: Qty | C17: 8000 | D17: ton/year | G17: Investering | H17: =IF(sc6_codigester_totalinput_ton=0,0,(ge_dranco_I0_cte*(sc6_codigester_totalinput_ton^ge_dranco_I0_power)*sc6_codigester_totalinput_ton)) -> 5405922.797 | N17: Biogas upgrading | O17: Automatisch
B18: Gate fee | C18: -5 | D18: €/ton | G18: Op. kost | H18: =SUM('6. IOK integrated'!E345:E347) -> 198574.7647 | N18: Capaciteit | O18: =sc6_upgrading_codigester_m³_yr+sc6_upgrading_dranco_m³_yr -> 0
N19: Investering | O19: =IF(sc6_upgrading_totalbiogasinput_m³_h=0,0,(ge_LPCooab_I0_cte*sc6_upgrading_totalbiogasinput_m³_h^ge_LPCooab_I0_power)*sc6_upgrading_totalbiogasinput_m³_h) -> 0
N20: Op. kost | O20: =SUM('6. IOK integrated'!E359:E363) -> 0 | S20: Elektriciteit
S21: Productie | T21: Automatisch
S22: Opbrengst | T22: 65
B23: GFT | C23: Automatisch | S23: Subsidies | T23: 110
B24: Qty | C24: 37400 | D24: ton/year | S24: Warmte
B25: Gate fee | C25: 40 | D25: €/ton | N25: WKK | O25: Automatisch | S25: Productie | T25: Automatisch
N26: Capaciteit | O26: =sc6_gasengine_dranco_m³_yr+sc6_gasengine_codigester_m³_yr -> 5944294.36 | S26: Opbrengst | T26: 20
N27: Investering | O27: =IF(OR(sc6_gasengine_totalbiogas_m³=0,s_sc6_gasengine=0),0,(IF((sc6_gasengine_electricpower_MW*1000)>900,-386.1*LN(900)+3170.5,-386.1*LN(sc6_gasengine_electricpower_MW*1000)+3170.5)*1.2)*(sc6_gasengine_electricpower_MW*1000)*m_sc6_gasengine_number)+IF(AND(OR(sc6_CHPdranco_ratio>0,sc6_CHPcodigester_ratio>0),s_sc6_gasengine=1),IF((sc6_gasengine_electricity_MWe*1000)<1500,200000/1500*(sc6_gasengine_electricity_MWe*1000)*1.1,200000/1500*(sc6_gasengine_electricity_MWe*1000)),0) -> 2096551.504 | S27: Subsidies | T27: 31
G28: Droge vergister | H28: Automatisch | N28: Op. kost | O28: =SUM('6. IOK integrated'!E349,'6. IOK integrated'!E351) -> 377308.1359
G29: Capaciteit | H29: =sc6_OMSW_drancoinput_ton_yr+sc6_vergecuttings_drancoinput_ton_yr -> 46750
B30: Maaisel | C30: Automatisch | G30: Investering | H30: =IF(sc6_dranco_totalinput_ton=0,0,(ge_dranco_I0_cte*(sc6_dranco_totalinput_ton^ge_dranco_I0_power)*sc6_dranco_totalinput_ton)) -> 6160637.177 | S30: Compost
B31: Qty | C31: =s_sc6_roadsidecuttings_input_ton_yr -> 9350 | D31: ton/year | G31: Op. kost | H31: =SUM('6. IOK integrated'!E341:E343) -> 248642.6948 | S31: Productie | T31: Automatisch
B32: Gate fee | C32: 0 | D32: €/ton | S32: Opbrengst | T32: 13
K33: Composteringsinstallatie | L33: Automatisch | S33: Subsidies | T33: 0
G34: Houtketel | H34: Automatisch | K34: Capaciteit | L34: =sc6_composting_totalinput_ton -> 91209.83151
G35: Capaciteit | K35: Investering | L35: =IF(sc6_composting=0,IF(sc6_composting_totalinput_ton=0,0,(ge_composting_I0_cte*sc6_composting_totalinput_ton^ge_composting_I0_power)*sc6_composting_totalinput_ton),0)+IF(sc6_composting=0,IF(sc6_composting_totalinput_ton=0,0,e_sc6_composting_airtreatment_I0),0) -> 17702857.11 | S35: Houtsnippers | T35: Automatisch
B36: Hout | C36: Automatisch | G36: Investering | H36: =IF(sc6_woodboiler_heatproduction_MWh<=0,0,(ge_woodchipboiler_I0_cte*(sc6_woodboiler_heatproduction_MWh/m_woodboiler_OH_h*1000)^ge_woodchipboiler_I0_power)*(sc6_woodboiler_heatproduction_MWh/m_woodboiler_OH_h*1000)) -> 0 | K36: Op. kost | L36: =SUM('6. IOK integrated'!E353:E357) -> 2383616.926 | S36: Productie | T36: Automatisch | U36: Handmatig
B37: Qty | C37: 210 | D37: Automatisch | G37: Op. kost | H37: =SUM('6. IOK integrated'!E380:E382) -> 0 | S37: Opbrengst | T37: 13 | U37: €/ton
B38: Prijs | C38: 28.5 | D38: €/ton | S38: Subsidies | T38: 0 | U38: €/ton
B41: Groenafval | C41: Automatisch | R41: Algemeen | U41: Automatisch
B42: Qty | C42: 19100 | D42: Automatisch | S42: Nominale interest eigen kapitaal | U42: 0.127
B43: Prijs | C43: 0 | D43: €/ton | S43: Reële interest lening | U43: 0.05
S44: Verhouding kapitaal/lening | U44: 0.5
C47: Enkel Back-up

Sheet 6. IOK integrated (hidden)
A1: 6. IOK integrated | J1: Green waste
D2: OMSW | J2: =sc6_composting_greenwasteinput_ton -> 16999 | K2: ton
D3: =sc6_OMSW_drancoinput_ton_yr -> 37400 | E3: ton | H3: Digestate | M3: Compost
H4: =sc6_dranco_digestate_ton -> 40842.99693 | I4: ton | M4: =sc6_compost_ton -> 37223.26911 | N4: ton | Q4: External Electricity
G5: Dranco | J5: Composting | Q5: =MAX(0,sc6_electricityuse_plant_MWh-sc6_gasengine_electricityproduction_MWh) -> 0 | R5: MWh/yr
D6: Verge cuttings
D7: =sc6_vergecuttings_drancoinput_ton_yr -> 9350 | E7: ton | H7: Heat dranco | J7: Electricity composting/dranco
H8: =sc6_dranco_heatuse_MWh_yr -> 3971.534154 | I8: MWh/yr | J8: =sc6_dranco_electricityuse_MWh_yr+sc6_composting_electricityuse_MWh_yr -> 3826.695284 | K8: MWh/yr | N8: Electricity
L9: CHP | N9: =sc6_gasengine_surpluselectricity_MWh -> 9433.913609 | O9: MWh/yr
H10: Biogas CHP
H11: =sc6_gasengine_dranco_m³_yr -> 4700409.236 | I11: m³ | N11: Heat | Q11: Heat used
N12: =sc6_gasengine_surplusheat_MWh -> 9297.11828 | O12: MWh/yr | Q12: =sc6_externalheatuse_MWh -> 4648.55914 | R12: MWh/yr
Q14: Biogas away
Q15: =IF(sc6_biogasaway=1,sc6_dranco_totalbiogas_m³,0) -> 0 | R15: m³
K16: Heat upgrading | N16: Electricity LBM
K17: =sc6_upgrading_heatuse_MWh_yr -> 0 | L17: MWh/yr | N17: =sc6_LBM_electricityuse_MWh_yr -> 0 | O17: MWh/yr | Q17: Biomethane
H18: Biogas upgrading | K18: Electricity upgrading | Q18: =sc6_upgrading_biomethanesurplus_m³ -> 0 | R18: m³/yr
H19: =sc6_upgrading_dranco_m³_yr -> 0 | I19: m³ | K19: =sc6_upgrading_electricityuse_MWh_yr -> 0 | L19: MWh/yr | N19: Biomethane | Q19: LBM
L20: Upgrading | N20: =sc6_upgrading_biomethane_m³ -> 0 | O20: m³/yr | Q20: =sc6_LBM_output_l -> 0 | R20: l/yr
N21: CO2 | Q21: Dry ice
N22: =sc6_upgrading_CO2_kg -> 0 | O22: kg/yr | Q22: =sc6_LBM_dryice_m³ -> 0 | R22: m³/yr
H24: Heat | K24: Biogas CHP | M24: Biogas upgrading
H25: =sc6_codigester_heatuse_MWh_yr -> 1080.443024 | I25: MWh/yr | K25: =sc6_gasengine_codigester_m³_yr -> 1243885.124 | L25: m³ | M25: =sc6_upgrading_codigester_m³_yr -> 0 | N25: m³
H26: Electricity
H27: =sc6_codigester_electricityuse_MWh_yr -> 72.02953494 | I27: MWh/yr
D29: Manure | G29: Input
D30: =sc6_codigester_pigmanure_ton -> 16000 | E30: ton | G30: =sc6_codigester_totalinput_ton -> 24000 | H30: ton | Q30: Biogas away
I31: Co-digestion | Q31: =IF(sc6_biogasaway=1,sc6_codigester_totalbiogas_m³,0) -> 0 | R31: m³
D32: Co-substrates
D33: =sc6_codigester_cosubstrates_ton -> 8000 | E33: ton
K34: Electricity
J35: Heat | K35: =sc6_separation_electricityuse_MWh_yr+sc6_UFseparation_electricityuse_MWh_yr+sc6_ROseparation_electricityuse_MWh_yr -> 0 | L35: MWh/yr
H36: Digestate | J36: =sc6_hygienisation_heatuse_MWh -> 0 | K36: MWh/yr | M36: Solid fraction | O36: Heat
H37: =sc6_codigester_digestate_ton -> 22436.80989 | I37: ton | J37: Hygienisation | M37: =sc6_separation_thickfraction_ton -> 0 | N37: ton | O37: =sc6_dryer1_heatuse_MWh -> 0 | P37: MWh/yr | R37: Dry manure
L38: Separation | O38: Drying | R38: =sc6_dryer1_drymanure_ton -> 0 | S38: ton
J40: Thin fraction | M40: Retentate | O40: Heat
J41: =sc6_separation_thinfraction_ton -> 0 | K41: ton | M41: =sc6_UFseparation_thickfraction_ton -> 0 | N41: ton | O41: =sc6_dryer2_heatuse_MWh -> 0 | P41: MWh/yr | R41: UF retentate
L42: UF separation | O42: Drying | R42: =sc6_dryer2_UFretentate_ton -> 0 | S42: ton
J44: Thin fraction | M44: Retentate | O44: Heat
J45: =sc6_UFseparation_thinfraction_ton -> 0 | K45: ton | M45: =sc6_ROseparation_thickfraction_ton -> 0 | N45: ton | O45: =sc6_dryer3_heatuse_MWh -> 0 | P45: MWh/yr | R45: RO retentate
L46: RO separation | O46: Drying | R46: =sc6_dryer3_ROretentate_ton -> 0 | S46: ton
R48: Water
R49: =sc6_ROseparation_thinfraction_ton -> 0 | S49: m³
H53: Heat production
H54: =sc6_woodboiler_heatproduction_MWh -> 0 | I54: MWh/yr
D56: Wood | J56: Ash
D57: =sc6_woodboiler_input_ton -> 0 | E57: ton | G57: Wood boiler | J57: =sc6_woodboiler_ash_ton -> 0 | K57: ton/yr
A61: Dranco OMSW | D61: Value | E61: Unit
B62: Input | C62: OMSW | D62: =s_sc6_OMSW_input_ton_yr -> 37400 | E62: ton
D63: =sc6_OMSW_drancoinput_ton_yr/m_sc6_dranco_OH_h -> 4.986666667 | E63: ton/h
C64: Verge cuttings | D64: =(sc6_OMSW_drancoinput_ton_yr/(1-s_sc6_vergecuttings_ratio))*s_sc6_vergecuttings_ratio -> 9350 | E64: ton
D65: =sc6_vergecuttings_drancoinput_ton_yr/m_sc6_dranco_OH_h -> 1.246666667 | E65: ton/h
C66: Total input dranco | D66: =sc6_OMSW_drancoinput_ton_yr+sc6_vergecuttings_drancoinput_ton_yr -> 46750 | E66: ton
C67: Heat | D67: =IF(sc6_dranco_totalinput_ton=0,0,m_sc6_dranco_heatuse_ratio*(sc6_dranco_totalbiogas_m³*sc6_dranco_methane_ratio*m_sc6_methane_totalenergy_MJ_m³/3600)) -> 3971.534154 | E67: MWh/yr
C68: Electricity | D68: =IF(sc6_dranco_totalinput_ton=0,0,m_sc6_dranco_electricityuse_ratio*(sc6_dranco_totalbiogas_m³*sc6_dranco_methane_ratio*m_sc6_methane_totalenergy_MJ_m³/3600)) -> 264.7689436 | E68: MWh/yr
B69: Output | C69: Biogas OMSW | D69: =sc6_OMSW_drancoinput_ton_yr*m_sc6_OMSW_biogasyield_m³_ton -> 3740000 | E69: m³
C70: Biogas verge cuttings | D70: =sc6_vergecuttings_drancoinput_ton_yr*m_sc6_vergecuttings_biogasyield_m³_ton -> 1121065 | E70: m³
C71: Total biogas | D71: =D69+D70 -> 4861065 | E71: m³
C72: Methane yield | D72: =IF(sc6_dranco_totalbiogas_m³=0,0,(D69*m_sc6_OMSW_methaneyield_ratio+D70*m_sc6_vergecuttings_methaneyield_ratio)/sc6_dranco_totalbiogas_m³) -> 0.5546124255 | E72: %
C73: Digestate | D73: =sc6_dranco_totalinput_ton-((sc6_dranco_totalbiogas_m³*m_sc6_biogas_density_kg_m³)/1000) -> 40842.99693 | E73: ton
D74: =sc6_dranco_digestate_ton/m_sc6_dranco_OH_h -> 5.445732924 | E74: ton/h
C75: Fraction biogas CHP | D75: =IF(s_sc6_biogasaway=1,0,s_sc6_CHPdranco_ratio) -> 1 | E75: %
C76: Fraction biogas upgrading | D76: =s_sc6_upgrading_dranco_ratio -> 0 | E76: %
A77: Composting | D77: Value | E77: Unit
B78: Input | C78: Digestate | D78: =sc6_dranco_digestate_ton+Overzicht!K12*sc6_codigester_digestate_ton -> 63279.80682 | E78: ton
D79: =sc6_composting_digestateinput_ton/m_sc6_composting_OH_h -> 7.909975852 | E79: ton/h
C80: DM | D80: =sc6_composting_digestateinput_ton-D81 -> 21515.13432 | E80: ton
C81: Water content | D81: =sc6_composting_digestateinput_ton*(((1-s_sc6_vergecuttings_ratio)*m_sc6_OMSW_waterratio)+(s_sc6_vergecuttings_ratio*m_sc6_vergecuttings_waterratio)) -> 41764.6725 | E81: ton
C82: Water % | D82: =IF(sc6_composting_digestateinput_ton=0,0,D81/sc6_composting_digestateinput_ton) -> 0.66 | E82: %
C83: Green waste | D83: =s_sc6_greenwaste_input_ton_yr*(1-m_sc6_greenwaste_woodfraction) -> 16999 | E83: ton
D84: =sc6_composting_greenwasteinput_ton/m_sc6_composting_OH_h -> 2.124875 | E84: ton/h
C85: DM | D85: =sc6_composting_greenwasteinput_ton-D86 -> 9989.3 | E85: ton
C86: Water content | D86: =(s_sc6_greenwaste_input_ton_yr*m_sc6_greenwaste_waterratio)-(s_sc6_greenwaste_input_ton_yr*m_sc6_greenwaste_woodfraction*m_sc6_wood_waterratio) -> 7009.7 | E86: ton
C87: Water % | D87: =IF(sc6_composting_greenwasteinput_ton=0,0,D86/D83) -> 0.4123595506 | E87: %
C88: Recirculation part | D88: =m_sc6_compost_recirculationfraction*D96 -> 10931.02469 | E88: ton
C89: DM | D89: =sc6_composting_recirculationinput_ton-D90 -> 7105.16605 | E89: ton
C90: Water content | D90: =sc6_composting_recirculationinput_ton*m_sc6_OMSWcompost_waterratio -> 3825.858642 | E90: ton
C91: Water % | D91: =IF(sc6_composting_recirculationinput_ton=0,0,D90/sc6_composting_recirculationinput_ton) -> 0.35 | E91: %
C92: Total input | D92: =IF(AND(sc6_composting_digestateinput_ton=0,sc6_composting_greenwasteinput_ton=0),0,sc6_composting_digestateinput_ton+sc6_composting_greenwasteinput_ton+sc6_composting_recirculationinput_ton) -> 91209.83151 | E92: ton
C93: Total water content input | D93: =D81+D86+D90 -> 52600.23114 | E93: ton
C94: Total DM input | D94: =D80+D85+D89 -> 38609.60037 | E94: ton
C95: Total water % input | D95: =IF(sc6_composting_totalinput_ton=0,0,D93/(D93+D94)) -> 0.5766947518 | E95: %
C96: Compost | D96: =((sc6_composting_digestateinput_ton+sc6_composting_recirculationinput_ton)*m_sc6_OMSW_compostfraction)+(sc6_composting_greenwasteinput_ton*m_sc6_greenwaste_compostfraction) -> 48154.2938 | E96: ton
C97: Electricity | D97: =sc6_composting_totalinput_ton*m_sc6_compost_electricityuse_MWh_ton -> 3561.92634 | E97: MWh
C98: Personnel | D98: =(sc6_composting_totalinput_ton^(0.8))*0.000947354433993315 -> 8.801279539 | E98: persons/yr
B99: Output | C99: Compost | D99: =IF(sc6_composting_totalinput_ton=0,0,D96-sc6_composting_recirculationinput_ton) -> 37223.26911 | E99: ton
D100: =sc6_compost_ton/m_sc6_composting_OH_h -> 4.652908638 | E100: ton/h
C101: Wood chips | D101: =s_sc6_greenwaste_input_ton_yr*m_sc6_greenwaste_woodfraction -> 2101 | E101: ton
A102: Co-digester (dranco) | D102: Value | E102: Unit
B103: Input | C103: Pig manure | D103: =s_sc6_pigmanure_input_ton_yr -> 16000 | E103: ton | F103: =D103/(D105+D103) -> 0.6666666667
D104: =sc6_codigester_pigmanure_ton/m_sc6_dranco_OH_h -> 2.133333333 | E104: ton/h
C105: Co-substrates | D105: =s_sc6_cosubstrates_input_ton_yr -> 8000 | E105: ton
D106: =sc6_codigester_cosubstrates_ton/m_sc6_dranco_OH_h -> 1.066666667 | E106: ton/h
C107: Total input | D107: =sc6_codigester_pigmanure_ton+sc6_codigester_cosubstrates_ton -> 24000 | E107: ton
C108: Heat | D108: =IF(sc6_codigester_totalinput_ton=0,0,m_sc6_dranco_heatuse_ratio*(sc6_codigester_totalbiogas_m³*sc6_codigester_methane_ratio*m_sc6_methane_totalenergy_MJ_m³/3600)) -> 1080.443024 | E108: MWh/yr
C109: Electricity | D109: =IF(sc6_codigester_totalinput_ton=0,0,m_sc6_dranco_electricityuse_ratio*(sc6_codigester_totalbiogas_m³*sc6_codigester_methane_ratio*m_sc6_methane_totalenergy_MJ_m³/3600)) -> 72.02953494 | E109: MWh/yr
B110: Output | C110: Biogas pig manure | D110: =sc6_codigester_pigmanure_ton*m_sc6_pigmanure_biogasyield_m³_ton -> 326400 | E110: m³
C111: Biogas co-substrates | D111: =sc6_codigester_cosubstrates_ton*m_sc6_cosubstrates_biogasyield_m³_ton -> 960000 | E111: m³
C112: Total biogas | D112: =SUM(D110:D111) -> 1286400 | E112: m³
C113: Fraction biogas upgrading | D113: =s_sc6_upgrading_codigester_ratio -> 0 | E113: %
C114: Fraction biogas CHP | D114: =s_sc6_CHPcodigester_ratio -> 1 | E114: %
C115: Methane yield | D115: =IF(sc6_codigester_totalbiogas_m³=0,0,(m_sc6_pigmanure_methaneyield_ratio*D110+m_sc6_cosubstrates_methaneyield_ratio*D111)/sc6_codigester_totalbiogas_m³) -> 0.5701492537 | E115: %
C116: Digestate | D116: =sc6_codigester_totalinput_ton-(sc6_codigester_totalbiogas_m³*m_sc6_biogas_density_kg_m³/1000) -> 22436.80989 | E116: ton
D117: =sc6_codigester_digestate_ton/m_sc6_dranco_OH_h -> 2.991574652 | E117: ton/h
A118: CHP (gas engine) | D118: Value | E118: Unit
B119: Input | C119: Biogas dranco | D119: =IF(s_sc6_gasengine=1,IF(sc6_CHPdranco_ratio=0,0,(sc6_dranco_totalbiogas_m³-(sc6_dranco_totalbiogas_m³*gm_biogas_splitfactor_H2O))*sc6_CHPdranco_ratio),0) -> 4700409.236 | E119: m³/yr | F119: =IF(sc6_gasengine_dranco_m³_yr=0,0,(sc6_gasengine_dranco_m³_yr*sc6_dranco_methane_ratio)/D127) -> 0.786134619
D120: =sc6_gasengine_dranco_m³_yr/m_sc6_gasengine_OH_h -> 940.0818471 | E120: m³/h
D121: =D120*m_sc6_biogas_density_kg_m³ -> 1142.355915 | E121: kg/h
C122: Biogas co-digester | D122: =IF(s_sc6_gasengine=1,IF(sc6_CHPcodigester_ratio=0,0,(sc6_codigester_totalbiogas_m³-(sc6_codigester_totalbiogas_m³*gm_biogas_splitfactor_H2O))*sc6_CHPcodigester_ratio),0) -> 1243885.124 | E122: m³/yr | F122: =IF(sc6_gasengine_codigester_m³_yr=0,0,(sc6_gasengine_codigester_m³_yr*sc6_codigester_methane_ratio)/D127) -> 0.213865381
D123: =sc6_gasengine_codigester_m³_yr/m_sc6_gasengine_OH_h -> 248.7770248 | E123: m³/h
D124: =D123*m_sc6_biogas_density_kg_m³ -> 302.3054925 | E124: kg/h
C125: Total biogas | D125: =sc6_gasengine_dranco_m³_yr+sc6_gasengine_codigester_m³_yr -> 5944294.36 | E125: m³/yr
D126: =sc6_gasengine_totalbiogas_m³/m_sc6_gasengine_OH_h -> 1188.858872 | E126: m³/h
C127: Methane | D127: =(sc6_gasengine_dranco_m³_yr*sc6_dranco_methane_ratio)+(sc6_gasengine_codigester_m³_yr*sc6_codigester_methane_ratio) -> 3316105.542 | E127: m³/yr
C128: Energy value methane | D128: =IF(sc6_gasengine_totalbiogas_m³=0,0,((sc6_gasengine_dranco_m³_yr*sc6_dranco_methane_ratio*m_sc6_methane_totalenergy_MJ_m³)+(sc6_gasengine_codigester_m³_yr*sc6_codigester_methane_ratio*m_sc6_methane_totalenergy_MJ_m³))/sc6_gasengine_totalbiogas_m³) -> 19.72316268 | E128: MJ/m³
C129: Power engine | D129: =((sc6_gasengine_totalbiogas_m³*D128)/(m_sc6_gasengine_OH_h*3600))/m_sc6_gasengine_number -> 6.51334915 | E129: MW
C130: Electric efficiency | D130: =IF(D129=0,0,(0.0275*LN(D129*1000))+0.1679) -> 0.4093942493 | E130: %
C131: Electric power | D131: =(sc6_gasengine_totalbiogas_m³*D128*sc6_gasengine_electricefficiency/m_sc6_gasengine_OH_h/3600)/m_sc6_gasengine_number -> 2.666527685 | E131: MWe
B132: Output | C132: Thermal efficiency | D132: =0.85-sc6_gasengine_electricefficiency -> 0.4406057507 | E132: %
C133: Heat | D133: =sc6_gasengine_totalbiogas_m³*sc6_gasengine_thermalefficiency*D128/1000 -> 51656.74365 | E133: GJ/yr
D134: =sc6_gasengine_totalbiogas_m³*sc6_gasengine_thermalefficiency*D128/3600 -> 14349.09546 | E134: MWh/yr
D135: =sc6_gasengine_heatproduction_MWh/m_sc6_gasengine_OH_h -> 2.869819092 | E135: MWth
C136: Surplus heat | D136: =IF(sc6_heataway=1,sc6_gasengine_heatproduction_MWh,MAX(sc6_gasengine_heatproduction_MWh-sc6_heatuse_plant_MWh,0)) -> 9297.11828 | E136: MWh/yr
D137: =sc6_gasengine_surplusheat_MWh/m_sc6_gasengine_OH_h -> 1.859423656 | E137: MWth
C138: Total heat use efficiency | D138: =IF(OR(sc6_biogasaway=1,s_sc6_gasengine=0),0,MIN(sc6_gasengine_thermalefficiency,sc6_usefulheatuse_BE_MWh/(sc6_gasengine_heatproduction_MWh/sc6_gasengine_thermalefficiency))) -> 0.297866308 | E138: %
C139: Electricity | D139: =sc6_gasengine_totalbiogas_m³*sc6_gasengine_electricefficiency*D128/3600 -> 13332.63843 | E139: MWh/yr
D140: =sc6_gasengine_electricityproduction_MWh*3.6 -> 47997.49834 | E140: GJ/yr
D141: =sc6_gasengine_electricityproduction_MWh/m_sc6_gasengine_OH_h -> 2.666527685 | E141: MWe
C142: Surplus electricity | D142: =MAX(sc6_gasengine_electricityproduction_MWh-sc6_electricityuse_plant_MWh,0) -> 9433.913609 | E142: MWh/yr
D143: =sc6_gasengine_surpluselectricity_MWh*3.6 -> 33962.08899 | E143: GJ/yr
D144: =sc6_gasengine_surpluselectricity_MWh/m_sc6_gasengine_OH_h -> 1.886782722 | E144: MWe | F144: =sc6_gasengine_surpluselectricity_MWe/sc6_gasengine_electricity_MWe -> 0.7075803983 | G144: % net
A145: Upgrading | D145: Value | E145: Unit
B146: Input | C146: Biogas dranco | D146: =(sc6_dranco_totalbiogas_m³-(sc6_dranco_totalbiogas_m³*gm_biogas_splitfactor_H2O))*sc6_upgrading_dranco_ratio -> 0 | E146: m³/yr
D147: =sc6_upgrading_dranco_m³_yr/m_sc6_upgrading_OH_h -> 0 | E147: m³/h
C148: Biogas co-digester | D148: =(sc6_codigester_totalbiogas_m³-(sc6_dranco_totalbiogas_m³*gm_biogas_splitfactor_H2O))*sc6_upgrading_codigester_ratio -> 0 | E148: m³/yr
D149: =sc6_upgrading_codigester_m³_yr/m_sc6_upgrading_OH_h -> 0 | E149: m³/h
C150: Total biogas | D150: =sc6_upgrading_dranco_m³_yr+sc6_upgrading_codigester_m³_yr -> 0 | E150: m³/yr
D151: =sc6_upgrading_totalbiogasinput_m³/m_sc6_upgrading_OH_h -> 0 | E151: m³/h
C152: Methane | D152: =IF(sc6_upgrading_totalbiogasinput_m³=0,0,(((sc6_upgrading_dranco_m³_yr*sc6_dranco_methane_ratio)+(sc6_upgrading_codigester_m³_yr*sc6_codigester_methane_ratio))/sc6_upgrading_totalbiogasinput_m³)*sc6_upgrading_totalbiogasinput_m³) -> 0 | E152: m³/yr
C153: Methane loss | D153: =m_sc6_upgrading_LPCooab_methaneloss_ratio*sc6_upgrading_totalbiogasinput_m³ -> 0 | E153: m³/yr
C154: Electricity | D154: =(m_sc6_upgrading_LPCooab_electricityuse_kWh_m³*sc6_upgrading_totalbiogasinput_m³)/1000 -> 0 | E154: MWh/yr
C155: Heat | D155: =(sc6_upgrading_totalbiogasinput_m³*m_sc6_upgrading_LPCooab_heatuse_kWh_m³)/1000 -> 0 | E155: MWh/yr
B156: Output | C156: Biomethane | D156: =IF(sc6_upgrading_totalbiogasinput_m³=0,0,(sc6_upgrading_totalbiogasinput_m³-D153)*((((sc6_upgrading_dranco_m³_yr*sc6_dranco_methane_ratio)+(sc6_upgrading_codigester_m³_yr*sc6_codigester_methane_ratio))/sc6_upgrading_totalbiogasinput_m³)/m_sc6_upgrading_LPCooab_methaneyield_ratio)) -> 0 | E156: m³/yr
D157: =sc6_upgrading_biomethane_m³/m_sc6_upgrading_OH_h -> 0 | E157: m³/hr
C158: CO2 liquid | D158: =(((sc6_upgrading_totalbiogasinput_m³*(1-0.05))-sc6_upgrading_biomethane_m³)*(m_sc6_CO2_density_kg_m³/m_sc6_CO2_liquiddensity_kg_m³))*(m_sc6_CO2_liquiddensity_kg_m³) -> 0 | E158: kg/yr
D159: =sc6_upgrading_CO2_kg/m_sc6_upgrading_OH_h -> 0 | E159: kg/h
C160: Percentage to LBM | D160: =s_sc6_LBM_ratio -> 0 | E160: %
C161: Biomethane surplus | D161: =sc6_upgrading_biomethane_m³*(1-sc6_LBM_ratio) -> 0 | E161: m³/yr
A162: LBM | D162: Value | E162: Unit
B163: Input | C163: Biomethane | D163: =sc6_upgrading_biomethane_m³*sc6_LBM_ratio -> 0 | E163: m³/yr
C164: Electricity | D164: =((m_sc6_LBM_electricityuse_CO2_kWh_m³biogas+m_sc6_LBM_electricityuse_cooling_kWh_m³biogas)*sc6_LBM_totalbiomethaneinput_m³)/1000 -> 0 | E164: MWh/yr
B165: Output | C165: LBM | D165: =(m_sc6_upgrading_LPCooab_methaneyield_ratio-m_sc6_LBM_methanelosses_ratio)*sc6_LBM_totalbiomethaneinput_m³*(m_sc6_methane_density_kg_m³/m_sc6_methane_densityliquid_kg_m³)*1000 -> 0 | E165: l/yr
D166: =sc6_LBM_output_l*m_sc6_methane_densityliquid_kg_m³/1000 -> 0 | E166: kg/yr
D167: =sc6_LBM_output_kg/m_sc6_upgrading_OH_h -> 0 | E167: kg/h
C168: Dry ice | D168: =((sc6_LBM_totalbiomethaneinput_m³*(1-m_sc6_upgrading_LPCooab_methaneyield_ratio))*(m_sc6_CO2_density_kg_m³/m_sc6_CO2_soliddensity_kg_m³)) -> 0 | E168: m³/yr
D169: =sc6_LBM_dryice_m³*m_sc6_CO2_soliddensity_kg_m³ -> 0 | E169: kg/yr
D170: =sc6_LBM_dryice_kg/m_sc6_upgrading_OH_h -> 0 | E170: kg/h
A171: Hygienisation | D171: Value | E171: Unit
B172: Input | C172: Digestate | D172: =sc6_codigester_digestate_ton*Overzicht!L8 -> 0 | E172: ton
C173: Heat | D173: =((sc6_hygienisation_input_ton*m_sc6_digestate_specificheatcapacity_kJ_kg_K*(m_sc6_hygienisation_temperature_°C-m_sc6_temperature_average_°C))/m_sc6_hygienisation_efficiency_ratio)*(1-m_sc6_hygienisation_efficiency_ratio) -> 0 | E173: MJ/yr
D174: =sc6_hygienisation_heatuse_MJ/3600 -> 0 | E174: MWh/yr
D175: =sc6_hygienisation_heatuse_MWh/m_sc6_hygienisation_OH_h -> 0 | E175: MW/yr
B176: Output | C176: Digestate | D176: =sc6_hygienisation_input_ton -> 0 | E176: ton
A177: Separation | D177: Value | E177: Unit
B178: Input | C178: Digestate | D178: =sc6_hygienisation_digestate_ton -> 0 | E178: ton
C179: DM | D179: =IF(sc6_codigester_totalinput_ton=0,0,sc6_separation_totalinput_ton*(((1-m_sc6_pigmanure_waterratio)*sc6_codigester_pigmanure_ton)+((1-m_sc6_cosubstrates_waterratio)*sc6_codigester_cosubstrates_ton))/sc6_codigester_totalinput_ton) -> 0 | E179: ton
C180: Water content | D180: =sc6_separation_totalinput_ton-D179 -> 0 | E180: ton
C181: Water % | D181: =D180/sc6_separation_totalinput_ton ->  | E181: %
C182: Electricity | D182: =sc6_separation_totalinput_ton*m_sc6_separation_electricityuse_kWh_kg -> 0 | E182: MWh
B183: Output | C183: Thick fraction | D183: =sc6_separation_totalinput_ton*0.13 -> 0 | E183: ton
D184: =sc6_separation_thickfraction_ton/m_sc6_separation_OH_h -> 0 | E184: ton/h
C185: DM thick fraction | D185: =D179*0.5 -> 0 | E185: ton
C186: Water % | D186: =IF(sc6_separation_thickfraction_ton=0,0.1,1-(D185/sc6_separation_thickfraction_ton)) -> 0.1 | E186: %
C187: Thin fraction | D187: =sc6_separation_totalinput_ton*(1-0.13) -> 0 | E187: ton
D188: =sc6_separation_thinfraction_ton/m_sc6_separation_OH_h -> 0 | E188: ton/h
C189: DM thin fraction | D189: =D179*(1-0.5) -> 0 | E189: ton
C190: Water % | D190: =1-(D189/sc6_separation_thinfraction_ton) ->  | E190: %
A191: UF separation | D191: Value | E191: Unit
B192: Input | C192: Thin fraction | D192: =sc6_separation_thinfraction_ton -> 0 | E192: ton
C193: Electricity | D193: =sc6_UFseparation_input_ton*m_sc6_separation_electricityuse_kWh_kg -> 0 | E193: MWh
B194: Output | C194: Retentate | D194: =sc6_UFseparation_input_ton*0.3 -> 0 | E194: ton
D195: =sc6_UFseparation_thickfraction_ton/m_sc6_separation_OH_h -> 0 | E195: ton/h
C196: DM retentate | D196: =D189*0.6 -> 0 | E196: ton
C197: Water % | D197: =IF(sc6_UFseparation_thickfraction_ton=0,0.1,1-(D196/sc6_UFseparation_thickfraction_ton)) -> 0.1 | E197: %
C198: Thin fraction | D198: =sc6_UFseparation_input_ton*(1-0.3) -> 0 | E198: ton
D199: =sc6_UFseparation_thinfraction_ton/m_sc6_separation_OH_h -> 0 | E199: ton/h
C200: DM thin fraction | D200: =D189*(1-0.6) -> 0 | E200: ton
C201: Water % | D201: =1-(D200/sc6_UFseparation_thinfraction_ton) ->  | E201: %
A202: RO separation | D202: Value | E202: Unit
B203: Input | C203: Thin fraction | D203: =sc6_UFseparation_thinfraction_ton -> 0 | E203: ton
C204: Electricity | D204: =sc6_ROseparation_input_ton*m_sc6_separation_electricityuse_kWh_kg -> 0 | E204: MWh
B205: Output | C205: Retentate | D205: =sc6_ROseparation_input_ton*0.3 -> 0 | E205: ton
D206: =sc6_ROseparation_thickfraction_ton/m_sc6_separation_OH_h -> 0 | E206: ton/h
C207: DM retentate | D207: =D200*0.9 -> 0 | E207: ton
C208: Water % | D208: =IF(sc6_ROseparation_thickfraction_ton=0,0.1,1-(D207/sc6_ROseparation_thickfraction_ton)) -> 0.1 | E208: %
C209: Water | D209: =sc6_ROseparation_input_ton*(1-0.3) -> 0 | E209: m³
D210: =D209/m_sc6_separation_OH_h -> 0 | E210: m³/h
C211: DM water | D211: =D200*(1-0.9) -> 0 | E211: ton
C212: Water % | D212: =1-(D211/sc6_ROseparation_thinfraction_ton) ->  | E212: %
A213: Drying 1 | D213: Value | E213: Unit
... 253 more rows

Sheet M in&out (hidden)
A1: Input Parameters | B1: M in&out | C1: Unit | D1: Indicative values | E1: 6. IOKb
A2: Biomass in
A3: Municipal organic waste (OMSW/GFT) | B3: Fresh matter input | C3: ton/year | D3: 64000 | E3: =s_sc6_OMSW_input_ton_yr -> 37400
B4: Water content of fresh matter | C4: % | D4: 0.625 | E4: 0.65
B5: Density of GFT | C5: kg/m³ | D5: 950
B6: Biogas production (Dranco) | C6: Nm³/ton | D6: 100 | E6: 100
B7: Biogas production (UASB) | C7: Nm³/ton | D7: 28
B8: Energy value | C8: MJ/kg | D8: 3.2
B9: Methane yield GFT biogas | C9: % | D9: 0.55 | E9: 0.55
B10: Metal fraction in GFT | C10: % | D10: 0.14
B11: Ash value GFT | C11: % | D11: 0.2
A12: Green waste | B12: Fresh matter input | C12: ton/year | D12: 0 | E12: =s_sc6_greenwaste_input_ton_yr -> 19100
B13: Water content of fresh matter | C13: % | D13: 0.4 | E13: 0.4
B14: Density of green waste | C14: kg/m³ | D14: 300
B15: Wood fraction in green waste | C15: % | D15: 0.11 | E15: 0.11
B16: Energy value wood in green waste | C16: GJ/ton | D16: 7
B17: Biogas production green waste | C17: Nm³/ton | D17: 88.2
A18: Roadside/Verge cuttings | B18: Fresh matter input | C18: ton/year | D18: 0 | E18: =s_sc6_roadsidecuttings_input_ton_yr -> 9350
B19: Water content of fresh matter | C19: % | D19: 0.7 | E19: 0.7
B20: Density of verge cuttings | C20: kg/m³ | D20: 160
B21: Biogas production verge cuttings | C21: Nm³/ton | D21: 119.9 | E21: 119.9
B22: Biogas production verge cuttings (UASB) | C22: Nm³/ton | D22: 30
B23: Energy value verge cuttings | C23: GJ/ton dm | D23: 14
B24: Methane yield moawings | C24: % | D24: 0.57 | E24: 0.57
B25: Ash value verge cuttings | C25: % | D25: 0.084
A26: Nature grass | B26: Fresh matter input | C26: ton/year | D26: 0 | E26: =s_sc6_naturegrass_input_ton_yr -> 0
B27: Energy value nature grass | C27: MJ/kg | D27: 10.6
B28: Biogas production nature grass | C28: Nm³/ton | D28: 90
B29: Yield grass | C29: ton DS/ha | D29: 11.5
B30: Water content of nature grass | C30: % | D30: 0.6
B31: Methane yield nature grass | C31: % | D31: 0.56
A32: Pig manure | B32: Fresh matter input | C32: ton/year | D32: 16000 | E32: =s_sc6_pigmanure_input_ton_yr -> 16000
B33: ODS | C33: % | D33: 0.85 | E33: 0.85
B34: Water content of fresh matter | C34: % | D34: 0.94 | E34: 0.94
B35: Density of manure | C35: kg/m³ | D35: 1000 | E35: 1000
B36: Biogas production | C36: m³/ton ODS | D36: 400 | E36: 400
B37: Biogas production | C37: Nm³/ton | D37: =(1-m_pigmanure_waterratio)*D33*D36 -> 20.4 | E37: =(1-m_sc6_pigmanure_waterratio)*E33*E36 -> 20.4
B38: Methane yield pig manure biogas | C38: % | D38: 0.6 | E38: 0.6
B39: Energy value | C39: MJ/kg | D39: 0.42
A40: Chicken manure | B40: Fresh matter input | C40: ton/year | D40: 0 | E40: =s_sc6_chickenmanure_input_ton_yr -> 0
B41: Water content of fresh matter | C41: % | D41: 0.9
B42: Density of manure | C42: kg/m³ | D42: 800
B43: Biogas production | C43: Nm³/ton | D43: 70
B44: Energy value | C44: MJ/kg | D44: 8
A45: Cattle manure | B45: Fresh matter input | C45: ton/year | D45: 0 | E45: =s_sc6_cattlemanure_input_ton_yr -> 0
B46: ODS | C46: % | D46: 0.85
B47: Water content of fresh matter | C47: % | D47: 0.915
B48: Density of manure | C48: kg/m³ | D48: 1000
B49: Biogas production | C49: Nm³/ton | D49: =(1-m_cattlemanure_waterratio)*m_cattlemanure_ODS_ratio*D50 -> 20.23
B50: Biogas production | C50: m³/ton ODS | D50: 280
B51: Methane yield cattle manure biogas | C51: % | D51: 0.55
B52: Energy value | C52: MJ/kg | D52: 0.42
A53: Co-substrates | B53: Fresh matter input | C53: ton/year | D53: 8000 | E53: =s_sc6_cosubstrates_input_ton_yr -> 8000
B54: Water content of fresh matter | C54: % | D54: 0.6 | E54: 0.6
B55: Density of co-substrates | C55: kg/m³ | D55: 500 | E55: 500
B56: Biogas production | C56: Nm³/ton | D56: 120 | E56: 120
B57: Methane yield cosubstrates | C57: % | D57: 0.56 | E57: 0.56
A58: Cereal grains | B58: Fresh matter input | C58: ton/yr | D58: 0 | E58: =s_sc6_cerealgrain_input_ton_yr -> 0
B59: Water content of fresh matter | C59: % | D59: 0.7
B60: Density of co-substrates | C60: kg/m³ | D60: 150
B61: Biogas production cereal grains | C61: Nm³/ton | D61: 600
B62: Methane yield cereal grains | C62: % | D62: 0.53
B63: Energy value cereal grains | C63: GJ/ton | D63: 0.15
A64: Maize | B64: Fresh matter input | C64: ton/yr | D64: 0 | E64: =s_sc6_maize_input_ton_yr -> 0
B65: Yield maize | C65: ton dm/ha | D65: 6.5
B66: Energy value maize | C66: GJ/ton dm | D66: 17.5
B67: Collection efficiency | C67: % | D67: 0.68
B68: Organic matter in maize | C68: kg eos/ha | D68: 1400
B69: Biogas production maize | C69: Nm³/ton | D69: 200
B70: Water content maize | C70: % | D70: 0.7
B71: Methane yield maize | C71: % | D71: 0.5
B72: Heavy metals uptake (Cd) | C72: mg/kg dm | D72: 1.65
B73: Moisture content digestate for CBR | C73: % | D73: 0.1
A74: Wood | B74: Fresh matter input | C74: ton/year | D74: 2800 | E74: =s_sc6_wood_input_ton_yr -> 0
B75: Water content of wood | C75: % | D75: 0.3 | E75: 0.3
B76: Density of wood | C76: kg/m³ | D76: 500
B77: Ash content wood | C77: % | D77: 0.02 | E77: 0.02
B78: Energy value wood | C78: GJ/ton | D78: 13 | E78: 13
B79: yield wood | C79: ton ds/ha | D79: 10
A80: Miscanthus | B80: Fresh matter input | C80: ton/year | D80: 0 | E80: =s_sc6_miscanthus_input_ton_yr -> 0
B81: Water content miscanthus | C81: % | D81: 0.15
B82: Density of miscanthus | C82: kg/m³ | D82: 100
B83: Ash content miscanthus | C83: % | D83: 0.03
B84: Energy value miscanthus | C84: GJ/ton | D84: 17
B85: Yield miscanthus | C85: ton DS/ha | D85: 12
B86: Lifetime miscanthus | C86: yr | D86: 15
B87: Density plantation | C87: #/ha | D87: 15000
A88: Switchgrass | B88: Fresh matter input | C88: ton/year | D88: 0 | E88: =s_sc6_switchgrass_input_ton_yr -> 0
B89: Water content switchgrass | C89: %
B90: Density of switchgrass | C90: kg/m³
B91: Ash content of switchgrass | C91: %
B92: Energy value switchgrass | C92: GJ/ton
B93: Yield switchgrass | C93: ton DS/ha | D93: 10
B94: Lifetime switchgrass | C94: yr
B95: Density plantation | C95: #/ha
A96: Poplar | B96: Fresh matter input | C96: ton/yr | D96: 0 | E96: =s_sc6_poplar_input_ton_yr -> 0
B97: Yield poplar | C97: ton fresh/ha | D97: 16
B98: Yield poplar | C98: ton dry/ha | D98: 7
B99: Water content of fresh matter | C99: %
B100: Energy value | C100: MJ/kg | D100: 17.4
B101: Ash content poplar | C101: % | D101: 0.021
B102: Lifetime poplar | C102: yr
B103: Density plantation | C103: #/ha | D103: 15000
A104: Willow | B104: Fresh matter input | C104: ton/yr | D104: 0 | E104: =s_sc6_willow_input_ton_yr -> 0
B105: Yield willow twigs | C105: odt/ha | D105: 8
B106: Yield willow twigs (without leaves) | C106: ton fresh/ha | D106: 17.78
B107: Water content of fresh matter | C107: % | D107: 0.55
B108: Energy value | C108: MJ/kg | D108: 14.6
B109: Energy value dm | C109: MJ/kg | D109: 18.5
B110: Density of willow | C110: kg/m³ | D110: 150
B111: Ash content wood | C111: % | D111: 0.02
B112: Lifetime willow | C112: yr
B113: Density plantation | C113: #/ha | D113: 15000
B114: Heavy metals uptake (Cd) | C114: mg/kg dm | D114: 28
A115: Sludge | B115: Fresh matter input | C115: ton/yr | D115: 0 | E115: =s_sc6_sludge_input_ton_yr -> 0
B116: Water content of sludge | C116: % | D116: 0.95
B117: Biogas production sludge | C117: Nm³/ton | D117: 58
B118: Methane yield sludge | C118: % | D118: 0.63
B119: Energy value sludge | C119: GJ/ton | D119: 8.8
B120: Ash content sludge | C120: % | D120: 0.375
B121: Density sludge | C121: kg/m³ | D121: 560
A122: Glycerin | B122: Fresh matter input | C122: ton/yr | D122: 0 | E122: =s_sc6_glycerine_input_ton_yr -> 0
B123: Biogas yield | C123: m³/ton | D123: 600
B124: Methane yield | C124: %CH4 | D124: 0.68
B125: Water content glycerin | C125: % | D125: 0.3
A126: Farmers | B126: Amount of farmes in Belgian Campine | C126: # | D126: 200
B127: Average arable land per farmer | C127: ha | D127: 36
B128: Lease price agricultural land | C128: €/ha | D128: 250
B129: Heat use average | C129: GJ/yr | D129: 223
B130: Electricity use average | C130: GJ/yr | D130: 50
B131: Organic matter in soil | C131: kg eos/ha | D131: 3250
B132: Minimum needed organic matter in soil | C132: kg eos/ha | D132: 1500
A135: Pre-treatment
A136: Storage | B136: Storage loss | C136: % | D136: 0.06
A138: Conversion processes
A139: Composting | B139: Fraction of compost from green waste input | C139: % | D139: 0.55 | E139: 0.55
B140: Water content of green compost | C140: % | D140: 0.35 | E140: 0.35
B141: Fraction of compost from GFT | C141: % | D141: 0.375 | E141: 0.5229
B142: Water content of GFT compost | C142: % | D142: 0.35 | E142: 0.35
B143: Fraction of residues from post-treatment GFT compost (zeefoverloop) | C143: % | D143: 0.034759 | E143: 0.034759
B144: Fraction of recirculating compost | C144: % | D144: 0.227 | E144: 0.227
B145: Electricity consumption composting | C145: MWh/ton input | D145: 0.039052 | E145: 0.039052
B146: Operating hours | C146: hr | D146: 8000 | E146: 8000
A147: Digester (general) | B147: Retention time | C147: days | D147: 25
B148: Heat use in digester | C148: % | D148: 0.15
B149: Electricity use in digester | C149: % | D149: 0.01
B150: Operating hours | C150: hr | D150: 8000
B151: Dewatering electricity use | C151: kWh/m³ | D151: 7
B152: Digestate fraction | C152: %mass | D152: 0.9
B153: Specific heat capacity digestate | C153: kJ/kg*K | D153: 4.2 | E153: 4.2
A154: Dranco | B154: Heat use in digester | C154: % | D154: 0.15 | E154: 0.15
B155: Electricity use in digester | C155: % | D155: 0.01 | E155: 0.01
B156: Operating hours dranco | C156: hr | D156: 8000 | E156: 7500
B157: Ratio between net & bruto volume | C157: % | D157: 0.95
B158: Water use | C158: m³/ton input
A159: UASB digester | B159: Water addition (Attero) | C159: % | D159: 0.5
B160: Heat use in digester | C160: % | D160: 0.15
B161: Electricity use in digester | C161: % | D161: 0.01
B162: Compostfraction (Attero) | C162: % | D162: =1-(m_OMSW_UASB_biogasyield_m³_ton*m_biogas_density_kg_m³/1000) -> 0.9659753396
A163: Combustion | B163: Particle size | C163: mm | D163: 50
B164: Max. moisture content | C164: % | D164: 0.35
B165: Temperature | C165: °C | D165: 550
B166: Operating hours combuster | C166: hr | D166: 8000
B167: Electricity use in combustion reactor | C167: % | D167: 0.02
B168: Overall efficiency | C168: % | D168: zie model
A169: Gasification | B169: Particle size | C169: mm | D169: 25
B170: Max. moisture content | C170: % | D170: 0.15
B171: Temperature | C171: °C | D171: 750
B172: Operating hours gasification | C172: hr | D172: 8000
B173: Electricity use in gasifier | C173: KWh/odt | D173: 60
B174: Overall efficiency | C174: % | D174: zie model
B175: Wst/Wne | C175: % | D175: 0.33
B176: Wgt/Wne | C176: % | D176: 0.67
B177: Catalyst tar cracker agas dolomite | C177: t/odt | D177: 0.68
A178: Flash pyrolysis | B178: Particle size | C178: mm | D178: 2
B179: Max. moisture content | C179: % | D179: 0.07
B180: Temperature | C180: °C | D180: 500
B181: Operating hours pyrolysis | C181: hr | D181: 7000
B182: Electricity use pyrolysis | C182: kWh/odt | D182: 40
B183: Heat use pyrolysis | C183: kWh/odt
B184: Overall efficiency | C184: %
B185: Water consumption | C185: m³/odt | D185: 20
B186: Bio-oil yield | C186: % | D186: 0.65
B187: Biogas yield | C187: % | D187: =1-D186-D188 -> 0.226
B188: Char yield | C188: % | D188: 0.124
A189: Separation | B189: Electricity use separation | C189: kWh/kg | D189: 0.003 | E189: 0.003
B190: Electricity use separation | C190: kWh/m³ | D190: 2
B191: Sedimentation electricity use | C191: kWh/t | D191: 0
B192: DM solid fraction sedimentation | C192: % | D192: 0.05
B193: Flotation electricity use | C193: kWh/t | D193: 0
B194: DM solid fraction flotation | C194: % | D194: 0.05
B195: Screen sieves electricity use | C195: kWh/t | D195: 0.5
B196: DM solid fraction screen sieve | C196: % | D196: 0.1
B197: Belt press electricity use | C197: kWh/t | D197: 0.1
B198: DM solid fraction belt press | C198: % | D198: 0.23
B199: Centrifuge electricity use | C199: kWh/t | D199: 4
B200: DM solid fraction centrifuge | C200: % | D200: 0.23
B201: Screw press electricity use | C201: kWh/t | D201: 0.5
B202: DM solid fraction screw press | C202: % | D202: 0.33
B203: Electricity use RO | C203: kWh/m³ | D203: 11
... 155 more rows

Sheet Econ in&out (hidden)
A1: E in&out | C1: Unit | D1: Indicative values | E1: 6. IOKb
A2: Investment cost
A3: Harvesting | B3: Miscanthus | C3: €/ha | D3: 5000
B4: SRC | C4: €/ha | D4: 4300
A5: Storage | B5: Storage room pellets | C5: € | D5: 5000
A6: shredder | B6: Investment cost schredder | C6: € | D6: 300000
B7: Lifetime schredder | C7: yr | D7: 10
A8: Composting | B8: Investment cost composting | C8: €/ton | D8: zie model | E8: zie model
B9: Investment cost air treatment | C9: € | D9: 471000 | E9: 471000
B10: Lifetime composting | C10: yr | D10: 15 | E10: 20
B11: Lifetime air treatment | C11: yr | D11: 10 | E11: 10
A12: Digestion (general) | B12: Investment cost digestor (CSTR) | C12: €/ton | D12: 110
B13: Investment cost digestor (Kompogas) | C13: € | D13: zie model
B14: Investment cost water treatment | C14: € | D14: 250000
B15: Lifetime water treatment | C15: yr | D15: 15
B16: Gas cleaning | C16: €/1000 m³/hr | D16: 150000
B17: Lifetime gas cleaning | C17: yr | D17: 10
A18: Dranco | B18: Investment cost digestor (Dranco) | C18: € | D18: zie model | E18: zie model
B19: Investment cost digestor + dewatering (Dranco) | C19: € | D19: zie model
B20: Lifetime Dranco | C20: yr | D20: 20 | E20: 20
A21: UASB digester | B21: Investment cost digestor (UASB) | C21: € | D21: zie model
B22: Investment cost digestor (UASB) | C22: €/ton | D22: 435
B23: Lifetime digester UASB | C23: yr | D23: 20
A24: Combustion | B24: Investment cost combustor | C24: € | D24: zie model
B25: Lifetime combustor | C25: yr | D25: 20
A26: Gasification | B26: Investment cost gasifier | C26: € | D26: zie model
B27: Lifetime gasifier | C27: yr | D27: 20
A28: Flash pyrolysis | B28: Investment cost pyrolysis | C28: € | D28: zie model
B29: Investment cost pyrolysis liquid storage | C29: € | D29: zie model
B30: Lifetime pyrolysis | C30: yr | D30: 20
A31: Torch (fakkel) | B31: Investment cost torch | C31: € | D31: zie model
A32: Gas engine | B32: Investment cost gas engine | C32: € | D32: zie model | E32: zie model
B33: Lifetime gas engine | C33: yr | D33: 10 | E33: 10
B34: DeNoX (CO2-bemesting) | C34: € | D34: zie model | E34: zie model
B35: Lifetime DeNoX | C35: yr | D35: 10 | E35: 10
A36: Wood boiler | B36: Investment cost wood boiler | C36: € | D36: 125000
B37: Investment cost wood boiler | C37: € | D37: zie model | E37: zie model
B38: Lifetime wood boiler | C38: yr | D38: 10 | E38: 10
A39: Fumes treatment | B39: Investment cost fumes treatment | C39: € | D39: zie model
B40: Investment cost fumes treatment - doekenfilter | C40: €
B41: Investment cost fumes treatment - WESP&scrubber | C41: €/kW | D41: 97
B42: Lifetime fumes treatment | C42: yr | D42: 15
A43: Biogas boiler | B43: Investment cost biogas boiler | C43: € | D43: 25000
B44: Lifetime biogas boiler | C44: yr | D44: 10
A45: Bio oil engine (CHP) | B45: Investment cost bio-oil engine | C45: €/kWe | D45: zie model
B46: Lifetime bio-oil engine | C46: yr | D46: 5
B47: DeNoX (emission norms) | C47: € | D47: zie model
B48: Lifetime DeNoX | C48: yr | D48: 5
A49: Gas turbine | B49: Investment cost gas turbine | C49: € | D49: zie model
B50: Lifetime gas turbine | C50: yr | D50: 15
A51: Landfill engine | B51: Investment cost landfill engine | C51: €/kWe | D51: =217600/366 -> 594.5355191
B52: Lifetime landfill engine | C52: yr | D52: 5
A53: Stookolieketel | B53: Investment cost stookolieketel | C53: €/kW | D53: zie model
B54: Lifetime stookolieketel | C54: yr | D54: 10
A55: Steam turbine | B55: Investment cost steam turbine | C55: € | D55: zie model
B56: Lifetime steam turbine | C56: yr | D56: 10
A57: Steam engine | B57: Investment cost steam engine | C57: €
B58: Lifetime steam engine | C58: yr
A59: STEG/gas turbine combined cycle | B59: Investment cost STEG | C59: € | D59: zie model
B60: Lifetime STEG | C60: yr | D60: 10
A61: Dual-fuel engine (dieselengine) | B61: Investment cost diesel engine | C61: € | D61: zie model
B62: Lifetime dual fuel engine | C62: yr | D62: 5
A63: Grid connection | B63: Investment cost grid connection | C63: € | D63: zie model
A64: Biogas network | B64: Investment cost biogas network | C64: €/m | D64: 125 | E64: 125
B65: Distance biogas network | C65: m | D65: 700 | E65: 700
B66: Lifetime biogas network | C66: yr | D66: 15 | E66: 20
B67: Connection cost gas network | C67: €/connection | D67: 30000
B68: Connections biogas network | C68: # | D68: 1
A69: Heat network | B69: Investment cost heat network | C69: €/m | D69: 1000 | E69: 1000
B70: Connection cost heat network | C70: €/connection | D70: 30000 | E70: 30000
B71: Distance heat network | C71: m | D71: 1000 | E71: 1000
B72: Connections heat network | C72: # | D72: 1 | E72: 1
B73: Lifetime heat network | C73: yr | D73: 15 | E73: 20
A74: Upgrading | B74: Investment cost upgrading | C74: €/m³ biogas | D74: 0.4
B75: Investment cost chemical absorption | C75: €/Nm³ biogas | D75: 0.42
B76: Investment cost high pressure water scrubbing | C76: €/Nm³ biogas | D76: 0.13
B77: Investment cost high pressure water scrubbing | C77: €/Nm³/h biogas | D77: zie model
B78: Investment cost PSA | C78: €/Nm³ biogas | D78: 0.33
B79: Investment cost Cryogenic separation | C79: €/Nm³ biogas | D79: 0.44
B80: Investment cost membrande separation | C80: €/Nm³ biogas | D80: 0.36
B81: Investment cost filling station | C81: € | D81: 350000 | E81: 350000
B82: Lifetime upgrading | C82: yr | D82: 10 | E82: 20
B83: Lifetime filling station | C83: yr | D83: 15 | E83: 20
B84: Garbage truck | C84: € (incl. BTW) | D84: 197000
B85: Vehicles (trucks) (gas engine) | C85: € | D85: 20000 | E85: 20000
B86: Vehicles (small cars) (gas engine) | C86: € | D86: 3000
B87: Number of vehicles | C87: # | D87: 92 | E87: 92
B88: Lifetime vehicles | C88: yr | D88: 7 | E88: 7
B89: Hepa filter (quality control) | C89: € | D89: 30000
B90: Gas cleaning | C90: € | D90: 1500000
B91: CO2 network | C91: €/m | D91: 100
B92: Distance CO2 network | C92: m | D92: 500
A93: LBM | B93: LBM | C93: €/m³ biogas | D93: 0.1 | E93: 0.1
B94: Lifetime LBM | C94: yr | D94: 10 | E94: 20
B95: Investment LNG transport truck | C95: € | D95: 260000
A96: Separation | B96: Separator | C96: € | D96: zie model | E96: zie model
B97: Lifetime separator | C97: yr | D97: 10 | E97: 10
A98: UFRO | B98: UFRO | C98: € | D98: zie model | E98: zie model
B99: Lifetime UFRO | C99: yr | D99: 10 | E99: 10
A100: Drying | B100: Investment Drying | C100: € | D100: zie model
B101: Investment Drying | C101: €/ton | D101: 15 | E101: 15
B102: Lifetime dryer | C102: yr | D102: 10 | E102: 10
A103: Belt press | B103: Investment belt press | C103: €/ton dm | D103: 71
A104: Pasteurisation/Hygienisation | B104: Hygienisation | C104: € | D104: zie model | E104: zie model
B105: Lifetime hygienisation | C105: yr | D105: 10 | E105: 10
A106: General plant investment cost | B106: Site preparation | C106: %I0 | D106: 0.1 | E106: 0.1
A107: Operational cost
A108: General plant cost | B108: Maintenance cost site | C108: €/yr | D108: 26000
B109: Water use per year | C109: m³/yr | D109: 2000
B110: Water purchase cost (tap water) | C110: €/m³ | D110: 0.55
B111: Personnel cost status quo | C111: €/yr | D111: 250000
B112: Repair cost status quo | C112: €/yr | D112: 300000
B113: Repair cost | C113: %I0 | D113: 0.02 | E113: 0.02
B114: Maintenance cost composting status quo | C114: €/yr | D114: 55000
B115: Insurance status quo (brand) | C115: €/yr | D115: 17500
B116: Insurance | C116: %I0 | D116: 0.01 | E116: 0.01
B117: Electricity purchase cost net | C117: €/MWh | D117: 139.4 | E117: 139.4
B118: Electricity purchase cost landfill engine | C118: €/MWh | D118: 8.349
B119: Electricity distribution cost | C119: €/MWh | D119: zie model
B120: Heat purchase cost | C120: €/MWh | D120: 20
B121: Personnel cost | C121: €/hr | D121: 30 | E121: 30
B122: Working hours | C122: hr/yr | D122: =D124*8 -> 2400 | E122: =E124*8 -> 2400
B123: Number of personnel extra | C123: # | D123: 1
B124: Working days per year | C124: # | D124: 300 | E124: 300
A125: Transport | B125: Transportcost per km | C125: €/km | D125: =ge_transport_€_km -> 1.232406536
B126: Transportcost per ton | C126: €/ton | D126: =ge_transport_€_ton -> 7.394439213
A127: Harvesting | B127: Grass silage | C127: €/ton | D127: 17
B128: Maize | C128: €/ha | D128: 1100
B129: Maize | C129: €/ton | D129: 35
B130: Miscanthus | C130: €/ha | D130: 5000
B131: SRC | C131: €/ha | D131: 4300
B132: SRC personnel | C132: h/ha/yr | D132: 4
A133: Grinding/shredder | B133: Grinding | C133: €/odt | D133: 10
A134: Pelletising | B134: Cost | C134: €/ton | D134: 8
A135: Composting | B135: Residues post-treatment compost (zeefoverloop) | C135: €/ton | D135: 50
B136: Maintenance cost composting | C136: €/ton | D136: 10 | E136: 10
B137: Operational cost composting | C137: €/ton | D137: 9 | E137: 9
B138: Personnel composting | C138: # | D138: zie model
B139: Bulldozer red diesel | C139: l/yr | D139: 18000 | E139: 18000
B140: Prize red diesel | C140: €/l | D140: 0.941 | E140: 0.941
A141: Digestion (general) | B141: Analysis cost digestion input | C141: €/toninput | D141: 1.67 | E141: 1.67
B142: Maintenance cost water treatment | C142: %I0 | D142: 0.025
B143: Personnel digestor | C143: # | D143: 1 | E143: 1
A144: Dranco | B144: Maintenance cost digestion | C144: %I0 | D144: 0.016 | E144: 0.016
B145: Auxiliary products | C145: €/ton
A146: UASB digester | B146: Maintenance cost UASB digestion | C146: %I0 | D146: 0.03
B147: Operational cost digestor (UASB) | C147: €/ton/yr | D147: zie model
A148: Combustion | B148: Operational cost combustion | C148: %I0 | D148: 0.03
B149: Number of shifts | C149: # | D149: 3
B150: Number of laborers per shift for combustion reactor | C150: #/shift | D150: zie model
B151: Number of laborers per shift for steam cycle | C151: #/shift | D151: zie model
A152: Gasification | B152: Operational cost gasification | C152: %I0 | D152: 0.04
B153: Number of shifts | C153: # | D153: 3
B154: Number of laborers per shift for gasification reactor | C154: #/shift | D154: zie model
B155: Number of laborers per shift for electricity production | C155: #/shift | D155: zie model
B156: Dolomite | C156: €/ton | D156: 30
A157: Flash pyrolysis | B157: Operational cost pyrolysis | C157: %I0 | D157: 0.05
B158: Number of shifts | C158: # | D158: 3
B159: Number of laborers per shift for pyrolysis reactor | C159: #/shift | D159: zie model
B160: Number of laborers per shift for diesel engine | C160: #/shift | D160: zie model
B161: Number of laborers per shift for active coal production | C161: #/shift | D161: zie model
A162: Gas engine | B162: Maintenance cost gas engine | C162: €/MWh | D162: 21.96
B163: Oil cost gas engine | C163: €/OH | D163: 0.28
B164: Operational cost CHP | C164: €/kWhe | D164: 0.01
B165: O&M cost gas engine | C165: €/MWh | D165: zie model | E165: zie model
B166: Maintenance cost DeNoX | C166: €/MWh | D166: zie model | E166: zie model
A167: Wood boiler | B167: Maintenance cost wood boiler | C167: %I0 | D167: 0.03 | E167: 0.03
B168: Ash disposal cost | C168: €/ton | D168: 122 | E168: 122
B169: Pre-treatment cost wood | C169: €/ton | D169: 5
A170: Fumes treatment | B170: Maintenance cost fumes treatment | C170: €/kW | D170: 0.0081
A171: Biogas boiler | B171: Maintenance cost biogas boiler | C171: %I0 | D171: 0.03
B172: O&M cost gas boiler | C172: €/MWh | D172: zie model
A173: Bio oil engine (CHP) | B173: O&M cost bio-oil engine | C173: €/MWh | D173: zie model
B174: Maintenance cost bio-oil engine | C174: %I0 | D174: 0.045
B175: Maintenance cost DeNoX | C175: €/MWh | D175: zie model
A176: Gas turbine | B176: O&M cost gas turbine | C176: €/MWh | D176: zie model
A177: Landfill engine | B177: Maintenance cost landfill engine | C177: €/OH | D177: 3.66
B178: Operating hours landfill engine | C178: hr/yr | D178: 7000
B179: Waste water disposal cost | C179: €/m³ | D179: 12.25
A180: Stookolieketel | B180: O&M cost stookolieketel | C180: €/MWh | D180: zie model
A181: Steam turbine | B181: Personnel steam turbine | C181: # | D181: zie model
B182: Maintenance steam turbine | C182: %I0 | D182: 0.04
B183: Maintenance steam turbine | C183: €/kWh | D183: 0.004
A184: Steam engine
A185: STEG/gas turbine combined cycle | B185: Number of shifts | C185: # | D185: 3
B186: Personnel STEG | C186: # | D186: zie model
B187: Maintenance cost STEG | C187: €/kWh | D187: 0.009
A188: Dual-fuel engine (dieselengine) | B188: Maintenance cost dual fuel engine | C188: €/kWh | D188: 0.01
B189: Number of shifts | C189: # | D189: 3
B190: Personnel for diesel engine | C190: #/shift | D190: zie model
A191: Biogas network | B191: Maintenance cost biogas network | C191: %I0 | D191: 0.03 | E191: 0.03
A192: Heat network | B192: Maintenance cost heat network | C192: %I0 | D192: 0.03 | E192: 0.03
A193: Grid connection | B193: Connection equipment | C193: €/connection | D193: 80000
B194: Connection study | C194: €/connection | D194: 10000
B195: Substation | C195: €/connection | D195: 10000
B196: Underground lines | C196: €/km | D196: 50000
B197: Maintenance cost grid connection | C197: %I0 | D197: 0.025
A198: Upgrading | B198: Maintenance cost upgrading | C198: %I0 | D198: 0.03
B199: Maintenance cost upgrading | C199: €/Nm³biogas/u | D199: 200 | E199: 200
B200: Operational cost chemical absorption | C200: €/Nm³ biogas | D200: 0.09
... 126 more rows

Sheet General M calculations (hidden)
A1: Biogas parameters
A2: Source
A3: Berekeningen Hannes Pieper (VITO); http://www.agentschapnl.nl/sites/default/files/bijlagen/Analyse%20van%20biogassen%20uit%20vergistingsinstallaties.pdf;
B4: Biogas | L4: Dry biogas | Q4: Bio-methane vol% | V4: Landfill gas
A5: Composition | B5: Element | C5: Vol% | D5: Molar mass | E5: Molar partial mass (g/mol gas) | F5: Biogas mass (kg/Nm³) | G5: Split factor of total mass | H5: Standard enthalpie (kJ/mol) | I5: Energy (kJ/kg) | J5: Total energy (kJ/Nm³) | L5: Dry biogas vol% | M5: Dry biogas mass (kg/Nm³) | N5: Split factor of total mass | O5: Total energy (kJ/Nm³) | Q5: Bio-methane vol% | R5: Bio-methane mass (kg/Nm³) | S5: Split factor of total mass | T5: Total energy (kJ/Nm³) | V5: Landfill gas vol% | W5: Landfill mass (kg/Nm³) | X5: Split factor of total mass | Y5: Total energy (kJ/Nm³)
B6: CH4 | C6: 0.5449 | D6: 16 | E6: =D6*C6 -> 8.7184 | F6: =D6/22.41*C6 -> 0.3890406069 | G6: =F6/gm_biogas_density_kg_m³ -> 0.3201541722 | H6: 802.33 | I6: =1000/D6*H6 -> 50145.625 | J6: =I6*G6 -> 16054.33106 | L6: =(100/(C7/C6+1))/100 -> 0.5766747804 | M6: =L6*D6/22.41 -> 0.4117267508 | N6: =M6/gm_drybiogas_density_kg_m³ -> 0.3312663384 | O6: =N6*I6 -> 16611.55758 | Q6: 0.999 | R6: =Q6*D6/22.41 -> 0.713253012 | S6: =R6/gm_biomethane_density_kg_m³ -> 0.9972548041 | T6: =S6*I6 -> 50007.96544 | V6: 0.53 | W6: =V6*D6/22.41 -> 0.3784024989 | X6: =W6/gm_landfillgas_density_kg_m³ -> 0.3438767234 | Y6: =X6*I6 -> 17243.91322
B7: CO2 | C7: 0.4 | D7: 44 | E7: =D7*C7 -> 17.6 | F7: =D7/22.41*C7 -> 0.7853636769 | G7: 0.6463013204 | H7: 0 | I7: =1000/D7*H7 -> 0 | J7: =I7*G7 -> 0 | L7: =(100/(C6/C7+1))/100 -> 0.4233252196 | M7: =L7*D7/22.41 -> 0.8311606275 | N7: 0.6687336616 | O7: =N7*I7 -> 0 | Q7: 0.001 | R7: =Q7*D7/22.41 -> 0.001963409192 | S7: 0.002745195907 | T7: =S7*I7 -> 0 | V7: 0.32 | W7: =V7*D7/22.41 -> 0.6282909415 | X7: 0.5709651257 | Y7: =X7*I7 -> 0
B8: H2O | C8: 0.05 | D8: 18 | E8: 0.9 | F8: 0.04016064257 | G8: 0.03304949934 | H8: 0 | I8: 0 | J8: 0 | L8: 0 | M8: 0 | N8: 0 | O8: 0 | Q8: 0 | R8: 0 | S8: 0 | T8: 0 | V8: 0 | W8: 0 | X8: 0 | Y8: 0
B9: H2S | C9: 0.0001 | D9: 34.8 | E9: 0.00348 | F9: 0.0001552878179 | G9: 0.0001277913974 | H9: 0 | I9: 0 | J9: 0 | L9: 0 | M9: 0 | N9: 0 | O9: 0 | Q9: 0 | R9: 0 | S9: 0 | T9: 0 | V9: 0 | W9: 0 | X9: 0 | Y9: 0
B10: N2 | C10: 0 | D10: 14 | E10: 0 | F10: 0 | G10: 0 | H10: 0 | I10: 0 | J10: 0 | L10: 0 | M10: 0 | N10: 0 | O10: 0 | Q10: 0 | R10: 0 | S10: 0 | T10: 0 | V10: 0.15 | W10: 0.093708166 | X10: 0.08515815085 | Y10: 0
B11: O2 | C11: 0 | D11: 32 | E11: 0 | F11: 0 | G11: 0 | H11: 0 | I11: 0 | J11: 0 | L11: 0 | M11: 0 | N11: 0 | O11: 0 | Q11: 0 | R11: 0 | S11: 0 | T11: 0 | V11: 0 | W11: 0 | X11: 0 | Y11: 0
B12: H2 | C12: 0.005 | D12: 2 | E12: 0.01 | F12: 0.0004462293619 | G12: 0.0003672166593 | H12: 242 | I12: 121000 | J12: 44.43321578 | L12: 0 | M12: 0 | N12: 0 | O12: 0 | Q12: 0 | R12: 0 | S12: 0 | T12: 0 | V12: 0 | W12: 0 | X12: 0 | Y12: 0
B13: SUM | C13: =SUM(C6:C12) -> 1 | F13: =SUM(F6:F12) -> 1.215166444 | G13: =SUM(G6:G12) -> 1 | J13: =SUM(J6:J12) -> 16098.76428 | K13: kJ/kg | L13: =SUM(L6:L12) -> 1 | M13: =SUM(M6:M12) -> 1.242887378 | N13: =SUM(N6:N12) -> 1 | O13: =SUM(O6:O12) -> 16611.55758 | P13: kJ/kg | Q13: =SUM(Q6:Q12) -> 1 | R13: =SUM(R6:R12) -> 0.7152164212 | S13: =SUM(S6:S12) -> 1 | T13: =SUM(T6:T12) -> 50007.96544 | U13: kJ/kg | V13: =SUM(V6:V12) -> 1 | W13: =SUM(W6:W12) -> 1.100401606 | X13: =SUM(X6:X12) -> 1 | Y13: =SUM(Y6:Y12) -> 17243.91322 | Z13: kJ/kg
J14: =gm_biogas_totalenergy_kJ_kg*gm_biogas_density_kg_m³/1000 -> 19.56267813 | K14: MJ/Nm³ | O14: =gm_drybiogas_totalenergy_kJ_kg*gm_drybiogas_density_kg_m³/1000 -> 20.64629525 | P14: MJ/Nm³ | T14: =gm_biomethane_totalenergy_kJ_kg*gm_biomethane_density_kg_m³/1000 -> 35.76651807 | U14: MJ/Nm³ | Y14: =gm_landfillgas_totalenergy_kJ_kg*gm_landfillgas_density_kg_m³/1000 -> 18.97522981 | Z14: MJ/Nm³
J15: =gm_biogas_totalenergy_MJ_Nm³/3.6 -> 5.43407726 | K15: kWh/Nm³ | O15: =gm_drybiogas_totalenergy_MJ_Nm³/3.6 -> 5.735082014 | P15: kWh/Nm³ | T15: =gm_biomethane_totalenergy_MJ_Nm³/3.6 -> 9.935143909 | U15: kWh/Nm³ | Y15: =gm_landfillgas_totalenergy_MJ_Nm³/3.6 -> 5.270897169 | Z15: kWh/Nm³
A19: Biomethane/diesel ratio
A20: Source
A21: Berekeningen Hannes Pieper (VITO)
B23: Biomethane | C23: Diesel | E23: Ratio
A24: kWh/Nm³ - kWh/l | B24: =gm_biomethane_totalenergy_kWh_Nm³ -> 9.935143909 | C24: =gm_diesel_totalenergy_MJ_l/3.6 -> 9.853
A25: MJ/Nm³ - MJ/l | B25: =gm_biomethane_totalenergy_MJ_Nm³ -> 35.76651807 | C25: =C28*C26 -> 35.4708 | E25: l (diesel)/Nm³ (biomethane) | F25: =B25/gm_diesel_totalenergy_MJ_l -> 1.008336944
A26: kg/Nm³ - kg/l | B26: =gm_biomethane_density_kg_m³ -> 0.7152164212 | C26: 0.835
A27: kWh/kg | B27: =gm_biomethane_totalenergy_kWh_Nm³/gm_biomethane_density_kg_m³ -> 13.89110151 | C27: 11.8 | E27: Methane efficiency compared to diesel
A28: MJ/kg | B28: =gm_biomethane_totalenergy_kJ_kg/1000 -> 50.00796544 | C28: =C27*3.6 -> 42.48 | E28: % | F28: 0.9
A31: Biogas potential
A32: Source
A33: http://www.kompost.de/fileadmin/docs/Archiv/Abfallwirtschaft/Integration_der_Vergaerung_in_bestehende_Kompostierungsanlagen__HUK5_10.pdf
A34: Biogasproduction = FM [t] * DM [%] * OM [%] * biogas POT [Nm³/tODM]
A35: Biogasproduction = FM [t] * ODM [%] * biogas POT [Nm³/tODM]
B37: Fresh matter (ton) | C37: Dry matter (%) | D37: Organic dry matter (%) | E37: Average biogas potential (Nm³/ton ODM) | F37: Biogas potential (Nm³/ton ODM) | G37: Biogas yield (Nm³/ton FM)
A38: Pig manure | B38: 1 | C38: 0.08 | D38: 0.8 | E38: 350-550 | F38: 450 | G38: =B38*C38*D38*F38 -> 28.8
A39: Chicken manure (min) | B39: 1 | C39: 0.1 | D39: 0.7 | E39: 350-550 | F39: 350 | G39: =B39*C39*D39*F39 -> 24.5
A40: Chicken manure (max) | B40: 1 | C40: 0.2 | D40: 0.8 | E40: 350-550 | F40: 550 | G40: 88
A41: GFT | B41: 1 | C41: 0.35 | D41: 0.8 | E41: ? | F41: 450 | G41: 126
A42: GFT (100 Nm³) | B42: 1 | C42: 0.35 | D42: 0.8 | E42: ? | F42: =G42/(C42*D42) -> 357.1428571 | G42: 100
A43: Co-substrates | B43: 1 | C43: 0.4 | D43: 0.7 | E43: ? | F43: =G43/(C43*D43) -> 428.5714286 | G43: 120
A44: Energy mais | B44: 1 | C44: 0.33 | D44: 0.96 | E44: ? | F44: =G44/(C44*D44) -> 631.3131313 | G44: 200
A45: Tomato (uitgesorteerd) | B45: 1 | C45: 0.1 | D45: 0.92 | E45: ? | F45: 434.7826087 | G45: 40
A46: Tomato (snijstukjes) | B46: 1 | C46: 0.12 | D46: 0.9 | E46: ? | F46: 370.3703704 | G46: 40
A47: Tomate (geplet) | B47: 1 | C47: 0.09 | D47: 0.92 | E47: ? | F47: 483.0917874 | G47: 40
A48: Paprika (uitgesorteerd) | B48: 1 | C48: 0.15 | D48: 0.88 | E48: ? | F48: 378.7878788 | G48: 50
A52: Composting
A53: Source
A54: VCM + Jan Rijckeboer
B55: Unit | C55: value | D55: Source
A56: C/N ratio | B56: ratio | C56: 25-30 | D56: Tiquia et al (1998), VCM (2004)
A57: Moisture content | B57: % | C57: 40-60% | D57: VCM (2004)
A58: Dry matter content | B58: % | C58: min. 25% | D58: VCM (2004)
A60: Afbraak DS | B60: % | C60: 30-50% | D60: VCM (2004)
A61: Moisture content compost | B61: % | C61: 20-40% | D61: VCM (2004)
A62: Volume reduction | B62: % | C62: 0.6 | D62: VCM (2004)
A64: Separation UFRO
A65: Source
A66: Melse et al (2004) quick scan van be- en verwerkingstechnieken voor dierlijke mest
A67: Pig manure (vleesvarken) | B67: volume (%) | C67: DS (%)
A68: In | B68: 1 | C68: 0.0875
A69: Thick fraction | B69: 0.09 | C69: 0.333
A70: Concentrate UF | B70: 0.16 | C70: 0.0023
A71: Concentrate RO | B71: 0.25 | C71: 0.00084
A72: Permeate RO | B72: 0.5 | C72: 3e-06
A73: Pig manure (zeug) | B73: volume (%) | C73: DS (%)
A74: In | B74: 1 | C74: 0.0744
A75: Thick fraction | B75: 0.09 | C75: 0.333
A76: Concentrate UF | B76: 0.154 | C76: 0.0015
A77: Concentrate RO | B77: 0.178 | C77: 0.0012
A78: Permeate RO | B78: 0.578 | C78: 3e-06
A80: Separation mechanical
A81: Source
A82: Melse et al (2004) quick scan van be- en verwerkingstechnieken voor dierlijke mest, VCM
A83: Pig manure (vleesvarken) | B83: Volume thick (%) | C83: Volume thin (%) | D83: DS thick (%) | E83: DS thin (%)
A84: Mechanical separation | B84: 0.2 | C84: =1-B84 -> 0.8 | D84: 0.4 | E84: =1-D84 -> 0.6
A85: Centrifuge | B85: 0.15 | C85: =1-B85 -> 0.85 | D85: 0.45 | E85: =1-D85 -> 0.55
A86: Centrifuge + flocculant | B86: 0.25 | C86: 0.75 | D86: 0.7 | E86: 0.3
A87: Primary separation (bolle band) | B87: 0.44 | C87: 0.56 | D87: 0.88 | E87: 0.12
A88: Strofilter | B88: 0.2 | C88: 0.8 | D88: 0.7 | E88: 0.3
A89: Pig manure (zeug) | B89: Volume thick (%) | C89: Volume thin (%) | D89: DS thick (%) | E89: DS thin (%)
A90: Sedimentation | B90: 0.25 | C90: =1-B90 -> 0.75 | D90: 0.6 | E90: =1-D90 -> 0.4
A91: Catlle manure | B91: Volume thick (%) | C91: Volume thin (%) | D91: DS thick (%) | E91: DS thin (%)
A92: Centrifuge | B92: 0.29 | C92: =1-B92 -> 0.71 | D92: 0.59 | E92: =1-D92 -> 0.41
A95: Drying
A96: Source
A97: Energiebesparing by droogprocessen (2008)
B98: Rendement (%)
A99: Sproeidroger | B99: 50-80
A100: Trommeldroger | B100: 40-70
A101: Banddroger | B101: 40-60
A102: Flashdroger | B102: 50-75
A103: Tunneldroger | B103: 35-40
A104: Cilinder droger | B104: 90-92
A105: Fluid beddroger | B105: 40-80
A106: Infrarooddroger | B106: 30-60
A107: Diëlektrische droger | B107: 60
A109: Drying mechanical
A110: Source
A111: Howest Gerlinde De Vogeleer ()
A112: MJ/ton | B112: % DS in dried manure
A113: % DS in manure | B113: 50 | C113: 60 | D113: 70 | E113: 80 | F113: 90 | G113: 100
A114: 10 | B114: 3032 | C114: 3185 | D114: 3249 | E114: 3316 | F114: 3369 | G114: 3411
A115: 20 | B115: 2274 | C115: 2527 | D115: 2707 | E115: 2843 | F115: 2948 | G115: 3032
A116: 30 | B116: 1516 | C116: 1895 | D116: 2166 | E116: 2369 | F116: 2527 | G116: 2653
A117: 40 | B117: 758 | C117: 1263 | D117: 1634 | E117: 1895 | F117: 2106 | G117: 2274
A118: 50 | C118: 632 | D118: 1083 | E118: 1421 | F118: 1684 | G118: 1895
A119: 60 | D119: 541 | E119: 984 | F119: 1263 | G119: 1516
A121: Input before pretreatment | B121: Unit | C121: Value
A123: Yield per ha (fresh wood) | B123: ton/ha/yr | C123: 17.78
A124: Moisture content | B124: % | C124: 0.55
A125: Yield per ha (dry wood) | B125: odt/ha/yr | C125: 8
A126: Water quantity | B126: ton/ha/yr | C126: =C123-C125 -> 9.78
A128: Input after air drying
A130: Yield per ha (fresh wood) | B130: ton/ha/yr | C130: =C132/(1-C131) -> 10.66666667
A131: Moisture content | B131: % | C131: 0.25
A132: Yield per ha (dry wood) | B132: odt/ha/yr | C132: 8
A133: Water quantity | B133: ton/ha/yr | C133: =C130-C132 -> 2.666666667
A135: Input after drying with CHP heat
A137: Yield per ha (dried wood) | B137: ton/ha/yr | C137: =C139/(1-C138) -> 8.602150538
A138: Moisture content | B138: % | C138: 0.07
A139: Yield per ha (dry wood) | B139: odt/ha/yr | C139: 8
A140: Water quantity | B140: ton/ha/yr | C140: =C137-C139 -> 0.6021505376
A142: Quantity of evaporated water by using CHP heat
A143: Q_watereva_hayr | B143: ton/ha/yr | C143: =C133-C140 -> 2.064516129
A144: Yearly energy use for drying | B144: GJ/ha/yr | C144: =C143*(m_water_vaporation_KJ_kg/1000) -> 5.136516129
B145: MWh/ha/yr | C145: =C144/3.6 -> 1.426810036
A147: Internal energy needed
A148: Yield oil | B148: 0.52 | C148: LHV oil | D148: 15.8 | E148: GJ t-1 | F148: Energy from oil | G148: =B148*D148 -> 8.216 | H148: GJ
A149: Yield gas | B149: 0.25 | C149: LHV gas | D149: =G149/B149 -> 21.888 | E149: GJ t-1 | F149: Energy from gas | G149: =G151-G148-G150 -> 5.472 | H149: GJ
A150: Yield char | B150: 0.23 | C150: LHV char | D150: 24.4 | E150: GJ t-1 | F150: Energy from char | G150: =B150*D150 -> 5.612 | H150: GJ
A151: Total willow | B151: 1 | C151: LHV willow | D151: 19.3 | E151: GJ t-1 | F151: Energy from willow | G151: 19.3 | H151: GJ
A154: Efficiency combustion (Steam turbine)
A155: Source
A156: Caputo, Bridgwater
A157: Vermogen verbrandingsinstallatie (MWe) | B157: Caputo 2005 | C157: Bridgwater 1995 | D157: Dornburg 2001 | E157: Gemiddeld | F157: Berekening trendlijn (19,435WNE0,097) | G157: Laagste | H157: Hoogste | I157: Totaal vermogen (MW)
A158: 5 | B158: 25 | C158: 18 | D158: 26 | E158: =AVERAGE(B158:D158) -> 23 | F158: =19.435*POWER(A158,0.097) -> 22.71876061 | G158: =C158/F158 -> 0.7922967414 | H158: =D158/F158 -> 1.144428626 | I158: =A158/(E158/100) -> 21.73913043
A159: 10 | B159: 25 | C159: 20 | D159: 28 | E159: =AVERAGE(B159:D159) -> 24.33333333 | F159: =19.435*POWER(A159,0.097) -> 24.29878425 | G159: =C159/F159 -> 0.8230864471 | H159: =D159/F159 -> 1.152321026 | I159: =A159/(E159/100) -> 41.09589041
A160: 15 | B160: 26 | C160: 21 | D160: 28 | E160: 25 | F160: 25.27350045 | G160: 0.8309098315 | H160: 1.107879775 | I160: 60
A161: 20 | B161: 26 | C161: 22 | D161: 29 | E161: 25.66666667 | F161: 25.98869394 | G161: 0.846521955 | H161: 1.11586985 | I161: 77.92207792
A162: 25 | B162: 27 | C162: 23 | D162: 29 | E162: 26.33333333 | F162: 26.5573493 | G162: 0.8660502875 | H162: 1.091976449 | I162: 94.93670886
A163: 30 | B163: 28 | C163: 24 | D163: 29 | E163: 27 | F163: 27.03119881 | G163: 0.8878629531 | H163: 1.072834402 | I163: 111.1111111
A164: 35 | B164: 28 | C164: 25 | D164: 29 | E164: 27.33333333 | F164: 27.43842289 | G164: 0.9111310844 | H164: 1.056912058 | I164: 128.0487805
A165: 40 | B165: 28 | C165: 26 | D165: 30 | E165: 28 | F165: 27.79613192 | G165: 0.9353819473 | H165: 1.079286862 | I165: 142.8571429
A166: 45 | B166: 29 | C166: 26 | D166: 30 | E166: 28.33333333 | F166: 28.1155225 | G166: 0.9247560668 | H166: 1.067026231 | I166: 158.8235294
A167: 50 | B167: 29 | C167: 27 | D167: 30 | E167: 28.66666667 | F167: 28.40433561 | G167: 0.9505591108 | H167: 1.05617679 | I167: 174.4186047
J173: Efficiency combustion (MWe) cte | K173: 19.435
A174: Efficiency combustion (MW) cte | B174: 16.312 | J174: Efficiency combustion (MWe) power | K174: 0.097
A175: Efficiency combustion (MW) power | B175: 0.1073
A189: Efficiency gasifier (Combined gas steam Cycle)
A190: Source
A191: Caputo, Bridgwater
A192: Vermogen vergassingsinstallatie (MW) | B192: Caputo 2005 | C192: Bridgwater 1995 | D192: Dornburg 2001 | E192: Gemiddeld | F192: Berekening trendlijn (29,227WNE0,1104) | G192: Laagste | H192: Hoogste | I192: Totaal vermogen (MW)
A193: 5 | B193: 37 | C193: 24 | D193: 43 | E193: =AVERAGE(B193:D193) -> 34.66666667 | F193: =29.227*POWER(A193,0.1104) -> 34.9100546 | G193: =C193/F193 -> 0.6874810216 | H193: =D193/F193 -> 1.23173683 | I193: =A193/(E193/100) -> 14.42307692
A194: 10 | B194: 39 | C194: 30 | D194: 44 | E194: =AVERAGE(B194:D194) -> 37.66666667 | F194: =29.227*POWER(A194,0.1104) -> 37.68636409 | G194: =C194/F194 -> 0.7960438934 | H194: =D194/F194 -> 1.167531044 | I194: =A194/(E194/100) -> 26.54867257
A195: 15 | B195: 40 | C195: 35 | D195: 44 | E195: 39.66666667 | F195: 39.41165882 | G195: 0.8880620873 | H195: 1.11642091 | I195: 37.81512605
A196: 20 | B196: 41 | C196: 37 | D196: 44 | E196: 40.66666667 | F196: 40.68346655 | G196: 0.9094603568 | H196: 1.081520424 | I196: 49.18032787
A197: 25 | B197: 43 | C197: 40 | D197: 44 | E197: 42.33333333 | F197: 41.69815281 | G197: 0.9592751071 | H197: 1.055202618 | I197: 59.05511811
A198: 30 | B198: 43 | C198: 41 | D198: 44 | E198: 42.66666667 | F198: 42.54596966 | G198: 0.9636635462 | H198: 1.034175513 | I198: 70.3125
A199: 35 | B199: 44 | C199: 42 | D199: 44 | E199: 43.33333333 | F199: 43.27622316 | G199: 0.9705098303 | H199: 1.016724584 | I199: 80.76923077
A200: 40 | B200: 44 | C200: 43 | D200: 44 | E200: 43.66666667 | F200: 43.91892108 | G200: 0.9790768749 | H200: 1.001846105 | I200: 91.60305344
A201: 45 | B201: 44 | C201: 44 | D201: 44 | E201: 44 | F201: 44.49373881 | G201: 0.9889031844 | H201: 0.9889031844 | I201: 102.2727273
A202: 50 | B202: 45 | C202: 45 | D202: 45 | E202: 45 | F202: 45.0143028 | G202: 0.9996822609 | H202: 0.9996822609 | I202: 111.1111111
A206: Bridgwater
A207: Input | B207: odt/h | C207: 2.4
A208: ηatmosferic gasification | B208: % | C208: =(-0.00006*C207^2+0.0347*C207^1+71.1)/100 -> 0.711829344
A210: Gasification dual fuel engine for electricity generation
A211: Gasification service hours | B211: hr | C211: 8000
A212: Feedstock | B212: odt/yr | C212: =C207*C211 -> 19200
A213: LHV willow | B213: GJ/ton | C213: 19300
A214: MWth input gas | B214: MWth/year | C214: =(C212*C213*C208)/(C211*3600) -> 9.158870893 | D214: (Feedstock_odtyr*LHV_willow*efficiency atmosferic gasification)/(Gasification_service_hours*3600)
A215: Share of total energy from diesel fuel | B215: % | C215: 0.05
A216: MWth input diesel fuel | B216: MWth/year | C216: =C215*C214/(1-C215) -> 0.4820458365
A217: MWh th input diesel fuel | B217: MWh th /year | C217: =C216*C211 -> 3856.366692 | D217: MWth/yr*Gasification_service_hours
A218: MJ th input diesel fuel | B218: MJ/yr | C218: =C216*C211*3600 -> 13882920.09 | D218: MWth/yr*Gasification_service_hours*3600
A219: GJ th input diesel fuel | B219: GJ/yr | C219: =C218/1000 -> 13882.92009
A220: Total MWth engine energy supply | B220: MWth | C220: =C214+C216 -> 9.640916729
A222: ηdual fuel engine for electricity | C222: =0.9*(-0.002329*POWER(C220,2)+0.313*POWER(C220,1)+38.561519)/100 -> 0.3722638656 | D222: 0,9*(-0,002329*MWth^2+0,313*MWth^1+38,561519)/100 | N222: Efficiency gasification (MWe) cte | O222: 29.227 | X222: Efficiency gasification (MW) cte | Y222: 25.103
N223: Efficiency gasification (MWe) power | O223: 0.1104 | X223: Efficiency gasification (MW) power | Y223: 0.124
A224: Total process efficiency | C224: =C208*C222 -> 0.2649883432
A227: Efficiency updraft gasifier for heat
A228: Source
A229: Dornburg, 2001
A230: Vermogen vergassingsinstallatie (MWth) | B230: Totaal vermogen (MW) | C230: Dornburg 2001
A231: 1 | B231: =A231/(C231/100) -> 1.333333333 | C231: 75
A232: 3 | B232: =A232/(C232/100) -> 3.529411765 | C232: 85
A233: 5 | B233: =A233/(C233/100) -> 6.25 | C233: 80
A234: 10 | B234: =A234/(C234/100) -> 11.36363636 | C234: 88
A237: Efficiency pyrolysis (dual fuel engine)
A238: Source
A239: Bridgwater (2002)
A240: Pyrolysis dual fuel engine for electricity production
A241: Agricultural land | B241: ha | C241: 2400
A242: willow | B242: odt/ha/yr | C242: 8
A243: Feedstock | B243: odt/yr | C243: =C241*C242 -> 19200
A244: Bio-oil from input | B244: % | C244: 0.65
A245: LHV oil | B245: MJ/ton | C245: 17000
A246: Engine operating hours | B246: hr | C246: 5000
A247: MWth input pyrolysis liquid | B247: MWth/year | C247: =(C243*C244*C245)/(C246*3600) -> 11.78666667 | D247: (Agriland_ha*Willow_odthayr * LHVOil_Mjton)
A248: Share of total energy from diesel fuel | B248: % | C248: 0.075
A249: MWth input diesel fuel | B249: MWth/year | C249: =C248*C247/(1-C248) -> 0.9556756757
A250: Operating hours pyrolysis | B250: hr | C250: 7000
A251: MWh th input diesel fuel | B251: MWh th /year | C251: =C250*C249 -> 6689.72973
A252: MJ th input diesel fuel | B252: MJ/yr | C252: =C251*3600 -> 24083027.03
A253: GJ th input diesel fuel | B253: GJ/yr | C253: =C252/1000 -> 24083.02703
... 94 more rows

Sheet General E calculations (hidden)
A1: Dranco digester
A2: Source
A3: OWS offertes (2006, 2012), Miplan (2006); overzicht Dries
A4: Volume (m³) | B4: ton/jaar | C4: €/ton | D4: Source | S4: Value | U4: Unit | V4: Source
A5: 670 | B5: 10000 | C5: 460 | D5: OWS (2006) | S5: Min | T5: Max
A6: 3180 | B6: 39900 | C6: 149 | D6: OWS (2012) | R6: Dry matter | S6: 0.2 | T6: 0.4 | U6: % | V6: OWS (2012) , BBT mest(co)-vergisting (2012)
A7: 3170 | B7: 45000 | C7: 133 | D7: OWS (2006) | R7: Steam | S7: 400 | U7: t/yr | V7: OWS (2012)
A8: 3950 | B8: 51400 | C8: 120.62 | D8: OWS (2012) | R8: Particle size | T8: 60 | U8: mm | V8: OWS (2012)
A9: 3170 | B9: 55000 | C9: 122 | D9: OWS (2006) | S9: Option steam | T9: Option hot water
R10: Maintenance | S10: 0.016 | T10: 0.03 | U10: % | V10: OWS (2012)
R11: Maintenance personnel | S11: 1 | U11: # | V11: OWS (2012)
A12: Dranco cte | B12: 748770
A13: Dranco power | B13: -0.804
A22: Kompogas digester
A23: Source
A24: Kompogas offertes (2006), Miplan (2006)
A25: Volume (m³) | B25: ton/jaar | C25: €/ton | D25: Source | S25: Value | U25: Unit | V25: Source
A26: 920 | B26: 10000 | C26: 260 | D26: Kompogas (2006) | S26: Min | T26: Max
A27: 1600 | B27: 36000 | C27: 139 | D27: Kompogas (2006) | R27: Dry matter | S27: 0.25 | T27: 0.32 | U27: % | V27: Kompogas (2012)
A28: 1600 | B28: 45000 | C28: 117 | D28: Kompogas (2012) | R28: Organic dry matter | S28: 0.5 | U28: % | V28: Kompogas (2012)
R29: Temperature | S29: 55 | U29: °C | V29: Kompogas (2012)
R30: Retention time | S30: 14 | T30: 20 | U30: days | V30: Kompogas (2012)
R31: Heating demand | S31: 0.004 | T31: 0.006 | U31: kWth/ton | V31: Kompogas (2012)
R32: Electricity demand | S32: 0.004 | U32: kWe | V32: Kompogas (2012)
A33: Kompogas cte | B33: 30403 | R33: Particle size | T33: 60 | U33: mm | V33: Kompogas (2012)
A34: Kompogas power | B34: -0.516
A42: Pellet boiler
A43: Source
A44: OT groene warmte (2010)
A45: Capacity (kWh) | B45: €/kWh (thermisch) | C45: Source
A46: 60 | B46: 345
A47: 100 | B47: 361
A48: 100 | B48: 335
A49: 120 | B49: 301
A50: 220 | B50: 226
A51: 400 | B51: 276
A53: Pellet boiler cte | B53: 773.21
A54: Pellet boiler power | B54: -0.19
A57: Wood chip boiler
A58: Source
A59: OT groene warmte (2010), Bioenergyfarm (2011)
A60: Capacity (kW) | B60: €/kW (thermisch) | C60: Source
A61: 100 | B61: 500
A62: 250 | B62: 320
A63: 467 | B63: 310
A64: 500 | B64: 341
A65: 625 | B65: 260
A66: 1000 | B66: 246
A67: 1250 | B67: 224
A68: 1250 | B68: 250
A69: 2000 | B69: 208
A70: 2500 | B70: 171
A71: 3000 | B71: 188
A72: 6250 | B72: 210
A74: Wood chip boiler cte | B74: 1322.1
A75: Wood chip boiler power | B75: -0.239
A79: Transport cost
A80: Source
A81: own calculations, zie ook voets (ongepubliceerd) en model Tom Kuppens
B82: Unit | C82: Value | D82: Source
A83: Tonnage | B83: ton | C83: 20 | D83: Rentizelas et al (2009); Huisman et al (1997), Rentizelas et al (2007); Caputo et al (2005); Dornburg (2001)
A84: Volume | B84: m³ | C84: 120 | D84: Rentizelas et al (2009); Huisman et al (1997), Rentizelas et al (2007)
A85: Distance (retour) | B85: km | C85: 120
A86: Speed | B86: km/h | C86: 50 | D86: Rentizelas et al (2009); Huisman et al (1997), Rentizelas et al (2007)
A87: Time travel | B87: h | C87: =C85/C86+0.25 -> 2.65
A88: Load time | B88: h | C88: 0.75
A89: Total traject time | B89: h | C89: =SUM(C87:C88) -> 3.4
A90: Cost diesel | B90: €/l | C90: =e_dieselprice_€_l -> 1.13 | D90: IOK (2012)
A91: Diesel usage | B91: l/km | C91: =m_dieselusagetruck_l_100km/100 -> 0.43 | D91: IOK (2012) , Rentizelas et al (2007)
A92: Personnel cost | B92: €/d | C92: 150 | D92: IOK (2012)
A93: Investment cost truck | B93: € | C93: 100000 | D93: IOK (2012); Rentizelas etal (2007)
A94: Usage truck | B94: days/year | C94: 240
A95: Depreciation period | B95: year | C95: 10 | D95: Rentizelas et al (2007);
A96: Discount rate | B96: % | C96: 0.06
A97: Depreciation per day | B97: €/day | C97: =-PMT(C96,C95,C93)/C94 -> 56.61164926
A98: Maintenance | B98: %I0 | C98: 0.01 | D98: Rentizelas et al (2007);
A99: Total fuel cost | B99: € | C99: =C85*C91*C90 -> 58.308
A100: Total personnel cost | B100: € | C100: =C92*C89/8 -> 63.75
A101: Total depreciation cost | B101: € | C101: =C97*C89/8 -> 24.05995093
A102: Total maintenance cost | B102: € | C102: =C98*C93/C94*C89/8 -> 1.770833333
A103: Total cost transport | B103: € | C103: =SUM(C99:C102) -> 147.8887843
B104: €/ton | C104: =C103/C83 -> 7.394439213
B105: €/km | C105: =C103/C85 -> 1.232406536 | D105: Caputo et al (2005)
A108: Transport distance
A109: Source
A110: smyth et al (2010)
B111: Unit/formula | C111: value
A112: Average distance (km) | B112: 2/3 * x * τ | C112: =2/3*C115*C113 -> 68.67096925
A113: Tortuosity factor (τ) | B113: vkw(2) for rural roads | C113: =SQRT(2) -> 1.414213562
A114: Silage yield (y) | B114: t/km² | C114: 12
A115: Radius of area of supply (x) (km) | B115: vkw (Q/ y a π) | C115: =SQRT(C116/(C114*C117*PI())) -> 72.83656204
A116: Required amount of silage (Q) | B116: t | C116: 20000
A117: Factor of silage availability (a) | B117: % | C117: 0.1
A120: Dryer
A121: Source
A122: Energiebesparing by droogprocessen (2008)
A123: Capacity (ton water evaporated/u) | B123: Investment (€)
A124: 1 | B124: 250000
A128: Maintenance | B128: %I0 | C128: 0.03
A129: Operational cost | B129: %I0 | C129: 0.04
A132: Separator
A133: Source
A134: Mestverwerking op het landbouwbedrijf: mogelijkheden en kostprijs (VCM, 2004)
A135: Vijzelpers
A136: Capacity (m³/h) | B136: Investment (€) | C136: Investment incl. storage (€) | D136: Investment incl. storage (€/m³/h)
A137: 4 | B137: 17000 | C137: 37000 | D137: =C137/A137 -> 9250
A138: 6.5 | B138: 30000 | C138: 50000 | D138: =C138/A138 -> 7692.307692
A139: Electricity use (kWh/m³) | B139: 1.7 | F139: Separator cte | G139: 15661
A140: Maintenance (%) | B140: 0.03 | F140: Separator power | G140: -0.38
A141: Insurance (%) | B141: 0.02
A142: Capacity (m³/yr) | B142: Investment (€/m³) | C142: Investment (€) | D142: Capacity (m³/h)
A143: 6400 | B143: 1.44 | C143: =B143*A143 -> 9216 | D143: =A143/8000 -> 0.8
A144: 5000 | B144: =22300/A144 -> 4.46 | C144: =B144*A144 -> 22300 | D144: =A144/8000 -> 0.625
A145: 10000 | B145: 0.99 | C145: =B145*A145 -> 9900 | D145: =A145/8000 -> 1.25
A146: 11750 | B146: 0.87 | C146: 10222.5 | D146: 1.46875
A148: Centrifuge
A149: Capacity (m³/h) | B149: Investment (€) | C149: Investment incl. storage (€) | D149: Investment incl. storage (€/m³/h)
A150: 2 | B150: 60000 | C150: 80000 | D150: =C150/A150 -> 40000
A151: 5 | B151: 82000 | C151: 102000 | D151: =C151/A151 -> 20400 | F151: Centrifuge cte | G151: 51997
A152: 7 | C152: 173500 | D152: =C152/A152 -> 24785.71429 | F152: Centrifuge power | G152: -0.456
A153: Electricity use (kWh/m³) | B153: 2.5
A154: Maintenance (%) | B154: 0.03
A155: Insurance (%) | B155: 0.02
A156: Capacity (m³/yr) | B156: Investment (€/m³) | C156: Investment (€) | D156: Capacity (m³/h)
A157: 6400 | B157: 3.17 | C157: =B157*A157 -> 20288 | D157: =A157/8000 -> 0.8
A158: 10000 | B158: 2.13 | C158: =B158*A158 -> 21300 | D158: =A158/8000 -> 1.25
A159: 11750 | B159: 1.85 | C159: 21737.5 | D159: 1.46875
A161: Compostering
A162: Source
A163: IOK (2012), Bionerga (2012), VCM
A164: Capacity (t/yr) | B164: Investment (€/t)
A165: 40000 | B165: 350
A166: 50000 | B166: 300
A167: 60000 | B167: 250
A170: Composting cte | B170: 2205589
A171: Composting power | B171: -0.82
A178: Upgrading water scrubber (LP Cooab)
A179: Source
A180: Biomethaan (2008), HIT (2008)
A181: m³ biogas/h | B181: Investment cost (€/m³/h biogas) | C181: Source
A182: 250 | B182: =1145000/A182 -> 4580
A183: 500 | B183: =1323500/A183 -> 2647
A185: LPCooab cte | B185: 361086
A186: LPCooab power | B186: -0.791
A190: m³ biogas/h | B190: Operational cost (€/m³/h biogas) | C190: Source
A191: 250 | B191: =111400/A191 -> 445.6
A192: 500 | B192: =190170/A192 -> 380.34
A195: LPCooab cte | B195: 1573.2
A196: LPCooab power | B196: -0.228
A202: Upgrading PSA
A203: Source
A204: Biomethaan (2008)
A205: m³ biogas/h | B205: Investment cost (€/m³/h biogas) | C205: Source
A206: 500 | B206: =1068600/A206 -> 2137.2 | C206: Cirmac
A207: 500 | B207: =1407500/A207 -> 2815 | C207: Carbotech
A214: m³ biogas/h | B214: Operational cost (€/m³/h biogas) | C214: Source
A215: 500 | B215: =228300/A215 -> 456.6 | C215: Cirmac
A216: 500 | B216: =191200/A216 -> 382.4 | C216: Carbotech
A226: Upgrading compression
A227: Source
A228: Biomethaan (2008), Hornbachner et al (2005)
B229: Pressure increase (bar) | C229: Investment (€/Nm³/h) | D229: Total investment (€/Nm³/h)
A230: 1 | B230: 10 | C230: =30000/200 -> 150 | D230: =C230 -> 150
A231: 2 | B231: 50 | C231: =70000/200 -> 350 | D231: =C230+C231 -> 500
A232: 3 | B232: 250 | C232: =130000/200 -> 650 | D232: =C231+C232 -> 1000
A234: Compression cte | B234: 42.043
A235: Compression power | B235: 0.5894
A240: LBM
A241: Source
A243: Extra tov biomethaan | B243: 0,1 €/m³ biogas
A246: CECPCI
A247: Source
A248: Chemical Engineering Plant Cost Index (CEPCI)
A249: year | B249: Value
A250: 1991 | B250: 361
A251: 1992 | B251: 358
A252: 1993 | B252: 359
A253: 1994 | B253: 368.1
A254: 1995 | B254: 381.1
A255: 1996 | B255: 381.7
A256: 1997 | B256: 386.5
A257: 1998 | B257: 389.5
A258: 1999 | B258: 390.6
A259: 2000 | B259: 394.1
A260: 2001 | B260: 394.3
A261: 2002 | B261: 395.6
A262: 2003 | B262: 402
A263: 2004 | B263: 444.2
A264: 2005 | B264: 468.2
A265: 2006 | B265: 499.6
A266: 2007 | B266: 525.4
A267: 2008 | B267: 575.4
A268: 2009 | B268: 521.8
A269: 2010 | B269: 550.8
A270: 2011 | B270: 582.7625
A272: Liever niet toepassen om periodes van meer dan 5 jaar te overbruggen
A273: Niet toepassen om periodes van meer dan 10 jaar te overbruggen
A276: Exchange rates
A277: Source
A278: http://www.oanda.com/currency/average
... 353 more rows

Sheet Summary (hidden)
A1: Summary | B1: 6. IOK integrated
A3: Belgium | B3: 1
A4: The Netherlands | B4: =IF(B3=0,1,0) -> 0
A5: CHP UASB digester
A6: Upgrading UASB digester
A7: CHP dranco | B7: =Overzicht!M22 -> 1
A8: Upgrading dranco | B8: =IF(B18=1,0,1-B7) -> 0
A9: CHP co-digester (dranco) | B9: =Overzicht!M22 -> 1
A10: Upgrading co-digester (dranco) | B10: =IF(B20=1,0,1-B9) -> 0
A11: LBM | B11: 0
A12: Verge cuttings | B12: 0.2
A13: Nature grass
A14: Composting | B14: 0
A15: Transport compost | B15: 0
A16: Heat away | B16: 0
A17: External heat use | B17: 0.5
A18: Biogas away | B18: 0
A19: SDE groen gas | B19: 1
A20: Bioticket | B20: =IF(B19=1,0,1) -> 0
A21: Vehicles | B21: 0
A22: Subsidy | B22: 1
A23: Investment tax credit | B23: 1
A24: Private (tax vs BTW) | B24: 1
A25: External benefits | B25: 0
A26: Bio-oil engine
A27: Dual-fuel engine
A28: Steam turbine
A29: Steam engine
A30: IGCC
A31: Steg
A32: Gas engine | B32: 1
A33: Wood boiler | B33: 1
A34: Char active carbon
A35: ECON PARAMETERS
B36: 6. IOK integrated
A37: NPV | B37: ='6. IOK integrated'!B465 -> -25094390.45
A38: IRR | B38: ='6. IOK integrated'!B466 -> 
A39: PB | B39: ='6. IOK integrated'!B467 -> 25
A40: DPB | B40: ='6. IOK integrated'!B468 -> 25
A41: 1+2
A42: 1-3
A43: 1-4
A44: 2+5
A45: 5-6
A46: 5+10
A48: INPUT (ton/yr)
B49: 6. IOK integrated
A50: OMSW | B50: =Overzicht!C24 -> 37400
A51: Green waste | B51: =Overzicht!C42 -> 19100
A52: Co-substrates | B52: =Overzicht!C17 -> 8000
A53: Pig manure | B53: =Overzicht!C10 -> 16000
A54: Cattle manure
A55: Chicken manure
A56: Wood | B56: =sc6_woodboiler_input_ton -> 0
A57: Roadside cuttings | B57: =sc6_vergecuttings_drancoinput_ton_yr -> 9350
A58: Nature grass
A59: Cereal grain
A60: Maize
A61: Miscanthus
A62: Switchgrass
A63: Poplar
A64: Willow
A65: Sludge
A66: Glycerine
A69: OUTPUT
B70: 6. IOK integrated
A71: Electricity (MWh/yr) | B71: =sc6_gasengine_electricityproduction_MWh -> 13332.63843
A72: Surplus electricity (MWh/yr) | B72: =sc6_gasengine_surpluselectricity_MWh -> 9433.913609
A73: Heat (MWh/yr) | B73: =sc6_gasengine_heatproduction_MWh -> 14349.09546
A74: Surplus heat (MWh/yr) | B74: =sc6_gasengine_surplusheat_MWh -> 9297.11828
A75: Compost (ton/yr) | B75: =sc6_compost_ton -> 37223.26911
A76: Dry manure (ton/yr) | B76: =sc6_dryer1_drymanure_ton -> 0
A77: Dry digestate (ton/yr)
A78: UF retentate (ton/yr) | B78: =sc6_dryer2_UFretentate_ton -> 0
A79: RO retentate (ton/yr) | B79: =sc6_dryer3_ROretentate_ton -> 0
A80: Water (m³/yr) | B80: =sc6_ROseparation_thinfraction_ton -> 0
A81: Ash (ton/yr) | B81: =sc6_woodboiler_ash_ton -> 0
A82: Biomethane (m³/yr) | B82: =sc6_upgrading_biomethane_m³ -> 0
A83: CO2 (kg/yr) | B83: =sc6_upgrading_CO2_kg -> 0
A84: LBM (l/yr) | B84: =sc6_LBM_output_l -> 0
A85: Dry ice (m³/yr) | B85: =sc6_LBM_dryice_m³ -> 0
A86: Pyrolysis oil (ton/yr)
A87: Pyrolysis char (ton/yr)
A88: Pyrolysis gas (ton/yr)
